Workbook

Sheet Fig. 1c
B2: RBS | C2: Fold change | F2: Mean value | G2: Error bar
C3: Parallel 1 | D3: Parallel 2 | E3: Parallel 3
B4: B0034 | C4: 2.34 | D4: 1.34 | E4: 3.35 | F4: =AVERAGE(C4:E4) -> 2.343333333 | G4: =STDEVA(C4:E4) -> 1.005004146
B5: B0029 | C5: 3.7 | D5: 4.25 | E5: 3.15 | F5: =AVERAGE(C5:E5) -> 3.7 | G5: =STDEVA(C5:E5) -> 0.55
B6: B0064 | C6: 4.92 | D6: 6.5 | E6: 3.4 | F6: 4.94 | G6: 1.550096771
B7: B0031 | C7: 14.6 | D7: 15.5 | E7: 13.4 | F7: 14.5 | G7: 1.053565375
B8: B0033 | C8: 22.45 | D8: 21.1 | E8: 24 | F8: 22.51666667 | G8: 1.45114897

Sheet Fig. 1d
B2: RBS | C2: Fold change | F2: Mean value | G2: Error bar
C3: Parallel 1 | D3: Parallel 2 | E3: Parallel 3
B4: B0034 | C4: 22.5 | D4: 25.2 | E4: 23.7 | F4: =AVERAGE(C4:E4) -> 23.8 | G4: =STDEVA(C4:E4) -> 1.352774926
B5: B0029 | C5: 17 | D5: 18.2 | E5: 18.5 | F5: =AVERAGE(C5:E5) -> 17.9 | G5: =STDEVA(C5:E5) -> 0.7937253933
B6: B0064 | C6: 4.07 | D6: 4.8 | E6: 3.66 | F6: 4.176666667 | G6: 0.5774368652
B7: B0031 | C7: 1.7 | D7: 1.96 | E7: 1.77 | F7: 1.81 | G7: 0.1345362405
B8: B0033 | C8: 1.35 | D8: 1.01 | E8: 1.88 | F8: 1.413333333 | G8: 0.4384442192

Sheet Fig. 1e
B2: OFF unit
B3: ATC concentration (ng/mL) | C3: Log(ATC) | D3: Parallel 1 | E3: Parallel 2 | F3: Parallel 3 | G3: Mean value | H3: Error bar | I3: Relative fluorescence intensity | J3: S.D.
B4: 300 | C4: =LOG(B4) -> 2.477121255 | D4: 57.41 | E4: 44.29 | F4: 71.11 | G4: =AVERAGE(D4:F4) -> 57.60333333 | H4: =STDEVA(D4:F4) -> 13.4110452 | I4: =G4/1303*100 -> 4.42082374 | J4: =H4/4591.44*100 -> 0.2920879985
B5: 200 | C5: 2.301029996 | D5: 69.17 | E5: 50.21 | F5: 55.18 | G5: 58.18666667 | H5: 9.831095226 | I5: 4.465592223 | J5: 0.2141179069
B6: 100 | C6: 2 | D6: 96.74 | E6: 89.23 | F6: 88.65 | G6: 91.54 | H6: 4.512659969 | I6: 7.02532617 | J6: 0.09828419776
B7: 50 | C7: 1.698970004 | D7: 362.31 | E7: 369.21 | F7: 384.69 | G7: 372.07 | H7: 11.46083767 | I7: 28.55487337 | J7: 0.2496131424
B8: 20 | C8: 1.301029996 | D8: 864.15 | E8: 849.55 | F8: 956.23 | G8: 889.9766667 | H8: 57.83958967 | I8: 68.30212331 | J8: 1.259726571
B9: 10 | C9: 1 | D9: 1216.36 | E9: 1265.26 | F9: 1246.21 | G9: 1242.61 | H9: 24.64797152 | I9: 95.36531082 | J9: 0.536824428
B10: 0.01 | C10: -2 | D10: 1298.65 | E10: 1288.11 | F10: 1301.36 | G10: 1296.04 | H10: 6.999978571 | I10: 99.46584804 | J10: 0.1524571501
B12: Control
B13: ATC concentration (ng/mL) | C13: Log(ATC) | D13: Parallel 1 | E13: Parallel 2 | F13: Parallel 3 | G13: Mean value | H13: Error bar | I13: Relative fluorescence intensity | J13: S.D.
B14: 300 | C14: =LOG(B14) -> 2.477121255 | D14: 1289.66 | E14: 1294.91 | F14: 1299.51 | G14: =AVERAGE(D14:F14) -> 1294.693333 | H14: =STDEVA(D14:F14) -> 4.928573154 | I14: =G14/1303*100 -> 99.3624968 | J14: =H14/4591.44*100 -> 0.1073426453
B15: 200 | C15: 2.301029996 | D15: 1289.24 | E15: 1288.49 | F15: 1299.21 | G15: 1292.313333 | H15: 5.984449292 | I15: 99.17984139 | J15: 0.1303392681
B16: 100 | C16: 2 | D16: 1220.81004 | E16: 1351.2 | F16: 1298.5 | G16: 1290.170013 | H16: 65.59288777 | I16: 99.01535022 | J16: 1.428590764
B17: 50 | C17: 1.698970004 | D17: 1323.06 | E17: 1301.2 | F17: 1278 | G17: 1300.753333 | H17: 22.53332051 | I17: 99.82757739 | J17: 0.4907680491
B18: 20 | C18: 1.301029996 | D18: 1222.72 | E18: 1329 | F18: 1218.41 | G18: 1256.71 | H18: 62.64205536 | I18: 96.44742901 | J18: 1.364322639
B19: 10 | C19: 1 | D19: 1303.06 | E19: 1314.56 | F19: 1244.5 | G19: 1287.373333 | H19: 37.57199134 | I19: 98.8007163 | J19: 0.8183051797
B20: 0.01 | C20: -2 | D20: 1302.73 | E20: 1306.21 | F20: 1265.55 | G20: 1291.496667 | H20: 22.5377402 | I20: 99.11716552 | J20: 0.4908643084
B22: Nonlinear fitting
B23: X1 | C23: Y1
B24: -2 | C24: 100.09046
B25: -1.99553 | C25: 100.09046
B26: -1.99105 | C26: 100.09046
B27: -1.98658 | C27: 100.09046
B28: -1.9821 | C28: 100.09046
B29: -1.97763 | C29: 100.09046
B30: -1.97315 | C30: 100.09046
B31: -1.96868 | C31: 100.09046
B32: -1.9642 | C32: 100.09046
B33: -1.95973 | C33: 100.09046
B34: -1.95526 | C34: 100.09046
B35: -1.95078 | C35: 100.09046
B36: -1.94631 | C36: 100.09046
B37: -1.94183 | C37: 100.09046
B38: -1.93736 | C38: 100.09046
B39: -1.93288 | C39: 100.09046
B40: -1.92841 | C40: 100.09046
B41: -1.92393 | C41: 100.09046
B42: -1.91946 | C42: 100.09046
B43: -1.91498 | C43: 100.09046
B44: -1.91051 | C44: 100.09046
B45: -1.90604 | C45: 100.09046
B46: -1.90156 | C46: 100.09046
B47: -1.89709 | C47: 100.09046
B48: -1.89261 | C48: 100.09046
B49: -1.88814 | C49: 100.09046
B50: -1.88366 | C50: 100.09046
B51: -1.87919 | C51: 100.09046
B52: -1.87471 | C52: 100.09046
B53: -1.87024 | C53: 100.09046
B54: -1.86577 | C54: 100.09046
B55: -1.86129 | C55: 100.09046
B56: -1.85682 | C56: 100.09046
B57: -1.85234 | C57: 100.09046
B58: -1.84787 | C58: 100.09046
B59: -1.84339 | C59: 100.09046
B60: -1.83892 | C60: 100.09046
B61: -1.83444 | C61: 100.09046
B62: -1.82997 | C62: 100.09046
B63: -1.8255 | C63: 100.09046
B64: -1.82102 | C64: 100.09046
B65: -1.81655 | C65: 100.09046
B66: -1.81207 | C66: 100.09046
B67: -1.8076 | C67: 100.09046
B68: -1.80312 | C68: 100.09046
B69: -1.79865 | C69: 100.09046
B70: -1.79417 | C70: 100.09046
B71: -1.7897 | C71: 100.09046
B72: -1.78523 | C72: 100.09046
B73: -1.78075 | C73: 100.09046
B74: -1.77628 | C74: 100.09046
B75: -1.7718 | C75: 100.09045
B76: -1.76733 | C76: 100.09045
B77: -1.76285 | C77: 100.09045
B78: -1.75838 | C78: 100.09045
B79: -1.7539 | C79: 100.09045
B80: -1.74943 | C80: 100.09045
B81: -1.74495 | C81: 100.09045
B82: -1.74048 | C82: 100.09045
B83: -1.73601 | C83: 100.09045
B84: -1.73153 | C84: 100.09045
B85: -1.72706 | C85: 100.09045
B86: -1.72258 | C86: 100.09045
B87: -1.71811 | C87: 100.09045
B88: -1.71363 | C88: 100.09045
B89: -1.70916 | C89: 100.09045
B90: -1.70468 | C90: 100.09045
B91: -1.70021 | C91: 100.09045
B92: -1.69574 | C92: 100.09045
B93: -1.69126 | C93: 100.09045
B94: -1.68679 | C94: 100.09045
B95: -1.68231 | C95: 100.09045
B96: -1.67784 | C96: 100.09045
B97: -1.67336 | C97: 100.09045
B98: -1.66889 | C98: 100.09045
B99: -1.66441 | C99: 100.09045
B100: -1.65994 | C100: 100.09045
B101: -1.65547 | C101: 100.09045
B102: -1.65099 | C102: 100.09045
B103: -1.64652 | C103: 100.09045
B104: -1.64204 | C104: 100.09045
B105: -1.63757 | C105: 100.09044
B106: -1.63309 | C106: 100.09044
B107: -1.62862 | C107: 100.09044
B108: -1.62414 | C108: 100.09044
B109: -1.61967 | C109: 100.09044
B110: -1.6152 | C110: 100.09044
B111: -1.61072 | C111: 100.09044
B112: -1.60625 | C112: 100.09044
B113: -1.60177 | C113: 100.09044
B114: -1.5973 | C114: 100.09044
B115: -1.59282 | C115: 100.09044
B116: -1.58835 | C116: 100.09044
B117: -1.58387 | C117: 100.09044
B118: -1.5794 | C118: 100.09044
B119: -1.57492 | C119: 100.09044
B120: -1.57045 | C120: 100.09044
B121: -1.56598 | C121: 100.09044
B122: -1.5615 | C122: 100.09043
B123: -1.55703 | C123: 100.09043
B124: -1.55255 | C124: 100.09043
B125: -1.54808 | C125: 100.09043
B126: -1.5436 | C126: 100.09043
B127: -1.53913 | C127: 100.09043
B128: -1.53465 | C128: 100.09043
B129: -1.53018 | C129: 100.09043
B130: -1.52571 | C130: 100.09043
B131: -1.52123 | C131: 100.09043
B132: -1.51676 | C132: 100.09043
B133: -1.51228 | C133: 100.09043
B134: -1.50781 | C134: 100.09043
B135: -1.50333 | C135: 100.09042
B136: -1.49886 | C136: 100.09042
B137: -1.49438 | C137: 100.09042
B138: -1.48991 | C138: 100.09042
B139: -1.48544 | C139: 100.09042
B140: -1.48096 | C140: 100.09042
B141: -1.47649 | C141: 100.09042
B142: -1.47201 | C142: 100.09042
B143: -1.46754 | C143: 100.09042
B144: -1.46306 | C144: 100.09042
B145: -1.45859 | C145: 100.09041
B146: -1.45411 | C146: 100.09041
B147: -1.44964 | C147: 100.09041
B148: -1.44517 | C148: 100.09041
B149: -1.44069 | C149: 100.09041
B150: -1.43622 | C150: 100.09041
B151: -1.43174 | C151: 100.09041
B152: -1.42727 | C152: 100.09041
B153: -1.42279 | C153: 100.0904
B154: -1.41832 | C154: 100.0904
B155: -1.41384 | C155: 100.0904
B156: -1.40937 | C156: 100.0904
B157: -1.40489 | C157: 100.0904
B158: -1.40042 | C158: 100.0904
B159: -1.39595 | C159: 100.0904
B160: -1.39147 | C160: 100.09039
B161: -1.387 | C161: 100.09039
B162: -1.38252 | C162: 100.09039
B163: -1.37805 | C163: 100.09039
B164: -1.37357 | C164: 100.09039
B165: -1.3691 | C165: 100.09039
B166: -1.36462 | C166: 100.09038
B167: -1.36015 | C167: 100.09038
B168: -1.35568 | C168: 100.09038
B169: -1.3512 | C169: 100.09038
B170: -1.34673 | C170: 100.09038
B171: -1.34225 | C171: 100.09037
B172: -1.33778 | C172: 100.09037
B173: -1.3333 | C173: 100.09037
B174: -1.32883 | C174: 100.09037
B175: -1.32435 | C175: 100.09037
B176: -1.31988 | C176: 100.09036
B177: -1.31541 | C177: 100.09036
B178: -1.31093 | C178: 100.09036
B179: -1.30646 | C179: 100.09036
B180: -1.30198 | C180: 100.09035
B181: -1.29751 | C181: 100.09035
B182: -1.29303 | C182: 100.09035
B183: -1.28856 | C183: 100.09035
B184: -1.28408 | C184: 100.09034
B185: -1.27961 | C185: 100.09034
B186: -1.27514 | C186: 100.09034
B187: -1.27066 | C187: 100.09033
B188: -1.26619 | C188: 100.09033
B189: -1.26171 | C189: 100.09033
B190: -1.25724 | C190: 100.09033
B191: -1.25276 | C191: 100.09032
B192: -1.24829 | C192: 100.09032
B193: -1.24381 | C193: 100.09032
B194: -1.23934 | C194: 100.09031
B195: -1.23486 | C195: 100.09031
B196: -1.23039 | C196: 100.09031
B197: -1.22592 | C197: 100.0903
B198: -1.22144 | C198: 100.0903
B199: -1.21697 | C199: 100.09029
B200: -1.21249 | C200: 100.09029
B201: -1.20802 | C201: 100.09029
B202: -1.20354 | C202: 100.09028
B203: -1.19907 | C203: 100.09028
... 820 more rows

Sheet Fig. 1f
B2: ON unit
B3: ATC concentration (ng/mL) | C3: Log(ATC) | D3: Parallel 1 | E3: Parallel 2 | F3: Parallel 3 | G3: Mean value | H3: Error bar | I3: Relative fluorescence intensity | J3: S.D.
B4: 300 | C4: =LOG(B4) -> 2.477121255 | D4: 4570.41 | E4: 4654.41 | F4: 4526.41 | G4: =AVERAGE(D4:F4) -> 4583.743333 | H4: =STDEVA(D4:F4) -> 65.03332479 | I4: =G4/4591.44*100 -> 99.83236922 | J4: 1.416403673
B5: 200 | C5: 2.301029996 | D5: 4584.77 | E5: 4761.12 | F5: 4428.42 | G5: 4591.436667 | H5: 166.4501602 | I5: 99.9999274 | J5: 3.62522782
B6: 100 | C6: 2 | D6: 3464.38 | E6: 3016.55 | F6: 3270.21 | G6: 3250.38 | H6: 224.5725916 | I6: 70.79216978 | J6: 4.891114587
B7: 50 | C7: 1.698970004 | D7: 1239.54 | E7: 1465.5 | F7: 1395.58 | G7: 1366.873333 | H7: 115.6829068 | I7: 29.77003583 | J7: 2.519534325
B8: 20 | C8: 1.301029996 | D8: 494.28 | E8: 539.74 | F8: 447.82 | G8: 493.9466667 | H8: 45.96090658 | I8: 10.75799023 | J8: 1.001012897
B9: 10 | C9: 1 | D9: 236.27 | E9: 251.64 | F9: 289.9 | G9: 259.27 | H9: 27.61714866 | I9: 5.646812329 | J9: 0.6014920952
B10: 0.01 | C10: -2 | D10: 228.44 | E10: 190.87 | F10: 158.01 | G10: 192.44 | H10: 35.24123863 | I10: 4.191277682 | J10: 0.7675421791
B12: Control
B13: ATC concentration (ng/mL) | C13: Log(ATC) | D13: Parallel 1 | E13: Parallel 2 | F13: Parallel 3 | G13: Mean value | H13: Error bar | I13: Relative fluorescence intensity | J13: S.D.
B14: 300 | C14: =LOG(B14) -> 2.477121255 | D14: 111.91 | E14: 104.29 | F14: 105.52 | G14: =AVERAGE(D14:F14) -> 107.24 | H14: =STDEVA(D14:F14) -> 4.090831211 | I14: =G14/4591.44*100 -> 2.335650689 | J14: 0.08909691102
B15: 200 | C15: 2.301029996 | D15: 92.89 | E15: 121.16 | F15: 114.74 | G15: 109.5966667 | H15: 14.8202103 | I15: 2.386978087 | J15: 0.3227791346
B16: 100 | C16: 2 | D16: 129.13 | E16: 218.66 | F16: 189.78 | G16: 179.19 | H16: 45.69481699 | I16: 3.902697193 | J16: 0.9952175569
B17: 50 | C17: 1.698970004 | D17: 133.31 | E17: 147.14 | F17: 168.82 | G17: 149.7566667 | H17: 17.89902884 | I17: 3.261649214 | J17: 0.3898347542
B18: 20 | C18: 1.301029996 | D18: 101.87 | E18: 77.46 | F18: 96.29 | G18: 91.87333333 | H18: 12.79031795 | I18: 2.000969921 | J18: 0.2785687704
B19: 10 | C19: 1 | D19: 166.26 | E19: 193.23 | F19: 151.33 | G19: 170.2733333 | H19: 21.2363517 | I19: 3.708495229 | J19: 0.4625205098
B20: 0.01 | C20: -2 | D20: 180.35 | E20: 145.49 | F20: 229.25 | G20: 185.03 | H20: 42.07566042 | I20: 4.029890405 | J20: 0.9163935589
B22: Nonlinear fitting
B23: X1 | C23: Y1
B24: -2 | C24: 5.07362
B25: -1.97763 | C25: 5.07362
B26: -1.97315 | C26: 5.07362
B27: -1.96868 | C27: 5.07362
B28: -1.9642 | C28: 5.07362
B29: -1.95973 | C29: 5.07362
B30: -1.95526 | C30: 5.07362
B31: -1.95078 | C31: 5.07362
B32: -1.94631 | C32: 5.07362
B33: -1.94183 | C33: 5.07362
B34: -1.93736 | C34: 5.07362
B35: -1.93288 | C35: 5.07362
B36: -1.92841 | C36: 5.07362
B37: -1.92393 | C37: 5.07362
B38: -1.91946 | C38: 5.07362
B39: -1.91498 | C39: 5.07362
B40: -1.91051 | C40: 5.07362
B41: -1.90604 | C41: 5.07362
B42: -1.90156 | C42: 5.07362
B43: -1.89709 | C43: 5.07362
B44: -1.89261 | C44: 5.07362
B45: -1.88814 | C45: 5.07362
B46: -1.88366 | C46: 5.07362
B47: -1.87919 | C47: 5.07362
B48: -1.87471 | C48: 5.07362
B49: -1.87024 | C49: 5.07362
B50: -1.86577 | C50: 5.07362
B51: -1.86129 | C51: 5.07362
B52: -1.85682 | C52: 5.07362
B53: -1.85234 | C53: 5.07362
B54: -1.84787 | C54: 5.07362
B55: -1.84339 | C55: 5.07362
B56: -1.83892 | C56: 5.07362
B57: -1.83444 | C57: 5.07362
B58: -1.82997 | C58: 5.07362
B59: -1.8255 | C59: 5.07362
B60: -1.82102 | C60: 5.07362
B61: -1.81655 | C61: 5.07362
B62: -1.81207 | C62: 5.07362
B63: -1.8076 | C63: 5.07362
B64: -1.80312 | C64: 5.07362
B65: -1.79865 | C65: 5.07362
B66: -1.79417 | C66: 5.07362
B67: -1.7897 | C67: 5.07362
B68: -1.78523 | C68: 5.07362
B69: -1.78075 | C69: 5.07362
B70: -1.77628 | C70: 5.07362
B71: -1.7718 | C71: 5.07362
B72: -1.76733 | C72: 5.07362
B73: -1.76285 | C73: 5.07362
B74: -1.75838 | C74: 5.07362
B75: -1.7539 | C75: 5.07362
B76: -1.74943 | C76: 5.07362
B77: -1.74495 | C77: 5.07362
B78: -1.74048 | C78: 5.07362
B79: -1.73601 | C79: 5.07362
B80: -1.73153 | C80: 5.07362
B81: -1.72706 | C81: 5.07362
B82: -1.72258 | C82: 5.07362
B83: -1.71811 | C83: 5.07362
B84: -1.71363 | C84: 5.07362
B85: -1.70916 | C85: 5.07362
B86: -1.70468 | C86: 5.07362
B87: -1.70021 | C87: 5.07362
B88: -1.69574 | C88: 5.07362
B89: -1.69126 | C89: 5.07362
B90: -1.68679 | C90: 5.07362
B91: -1.68231 | C91: 5.07362
B92: -1.67784 | C92: 5.07362
B93: -1.67336 | C93: 5.07362
B94: -1.66889 | C94: 5.07362
B95: -1.66441 | C95: 5.07362
B96: -1.65994 | C96: 5.07362
B97: -1.65547 | C97: 5.07362
B98: -1.65099 | C98: 5.07362
B99: -1.64652 | C99: 5.07362
B100: -1.64204 | C100: 5.07362
B101: -1.63757 | C101: 5.07362
B102: -1.63309 | C102: 5.07362
B103: -1.62862 | C103: 5.07362
B104: -1.62414 | C104: 5.07362
B105: -1.61967 | C105: 5.07362
B106: -1.6152 | C106: 5.07362
B107: -1.61072 | C107: 5.07362
B108: -1.60625 | C108: 5.07362
B109: -1.60177 | C109: 5.07362
B110: -1.5973 | C110: 5.07362
B111: -1.59282 | C111: 5.07362
B112: -1.58835 | C112: 5.07362
B113: -1.58387 | C113: 5.07362
B114: -1.5794 | C114: 5.07362
B115: -1.57492 | C115: 5.07362
B116: -1.57045 | C116: 5.07362
B117: -1.56598 | C117: 5.07362
B118: -1.5615 | C118: 5.07362
B119: -1.55703 | C119: 5.07362
B120: -1.55255 | C120: 5.07362
B121: -1.54808 | C121: 5.07362
B122: -1.5436 | C122: 5.07362
B123: -1.53913 | C123: 5.07362
B124: -1.53465 | C124: 5.07362
B125: -1.53018 | C125: 5.07362
B126: -1.52571 | C126: 5.07362
B127: -1.52123 | C127: 5.07362
B128: -1.51676 | C128: 5.07362
B129: -1.51228 | C129: 5.07362
B130: -1.50781 | C130: 5.07362
B131: -1.50333 | C131: 5.07362
B132: -1.49886 | C132: 5.07362
B133: -1.49438 | C133: 5.07362
B134: -1.48991 | C134: 5.07362
B135: -1.48544 | C135: 5.07362
B136: -1.48096 | C136: 5.07362
B137: -1.47649 | C137: 5.07362
B138: -1.47201 | C138: 5.07362
B139: -1.46754 | C139: 5.07362
B140: -1.46306 | C140: 5.07362
B141: -1.45859 | C141: 5.07362
B142: -1.45411 | C142: 5.07362
B143: -1.44964 | C143: 5.07362
B144: -1.44517 | C144: 5.07362
B145: -1.44069 | C145: 5.07362
B146: -1.43622 | C146: 5.07362
B147: -1.43174 | C147: 5.07362
B148: -1.42727 | C148: 5.07362
B149: -1.42279 | C149: 5.07362
B150: -1.41832 | C150: 5.07362
B151: -1.41384 | C151: 5.07362
B152: -1.40937 | C152: 5.07362
B153: -1.40489 | C153: 5.07362
B154: -1.40042 | C154: 5.07362
B155: -1.39595 | C155: 5.07362
B156: -1.39147 | C156: 5.07362
B157: -1.387 | C157: 5.07362
B158: -1.38252 | C158: 5.07362
B159: -1.37805 | C159: 5.07362
B160: -1.37357 | C160: 5.07362
B161: -1.3691 | C161: 5.07362
B162: -1.36462 | C162: 5.07362
B163: -1.36015 | C163: 5.07362
B164: -1.35568 | C164: 5.07362
B165: -1.3512 | C165: 5.07362
B166: -1.34673 | C166: 5.07362
B167: -1.34225 | C167: 5.07362
B168: -1.33778 | C168: 5.07362
B169: -1.3333 | C169: 5.07362
B170: -1.32883 | C170: 5.07362
B171: -1.32435 | C171: 5.07362
B172: -1.31988 | C172: 5.07362
B173: -1.31541 | C173: 5.07362
B174: -1.31093 | C174: 5.07362
B175: -1.30646 | C175: 5.07362
B176: -1.30198 | C176: 5.07362
B177: -1.29751 | C177: 5.07362
B178: -1.29303 | C178: 5.07362
B179: -1.28856 | C179: 5.07362
B180: -1.28408 | C180: 5.07362
B181: -1.27961 | C181: 5.07362
B182: -1.27514 | C182: 5.07362
B183: -1.27066 | C183: 5.07362
B184: -1.26619 | C184: 5.07362
B185: -1.26171 | C185: 5.07362
B186: -1.25724 | C186: 5.07362
B187: -1.25276 | C187: 5.07362
B188: -1.24829 | C188: 5.07362
B189: -1.24381 | C189: 5.07362
B190: -1.23934 | C190: 5.07362
B191: -1.23486 | C191: 5.07362
B192: -1.23039 | C192: 5.07362
B193: -1.22592 | C193: 5.07362
B194: -1.22144 | C194: 5.07362
B195: -1.21697 | C195: 5.07362
B196: -1.21249 | C196: 5.07362
B197: -1.20802 | C197: 5.07362
B198: -1.20354 | C198: 5.07362
B199: -1.19907 | C199: 5.07362
B200: -1.19459 | C200: 5.07362
B201: -1.19012 | C201: 5.07362
B202: -1.18565 | C202: 5.07362
B203: -1.18117 | C203: 5.07362
... 820 more rows

Sheet Fig. 1i
B2: ATC concentration (ng/mL) | C2: 200 | H2: 100 | M2: 50 | R2: 20 | W2: 10 | AB2: 0
B3: Time (min) | C3: Parallel 1 | D3: Parallel 2 | E3: Parallel 3 | F3: Mean value | G3: Error bar | H3: Parallel 1 | I3: Parallel 2 | J3: Parallel 3 | K3: Mean value | L3: Error bar | M3: Parallel 1 | N3: Parallel 2 | O3: Parallel 3 | P3: Mean value | Q3: Error bar | R3: Parallel 1 | S3: Parallel 2 | T3: Parallel 3 | U3: Mean value | V3: Error bar | W3: Parallel 1 | X3: Parallel 2 | Y3: Parallel 3 | Z3: Mean value | AA3: Error bar | AB3: Parallel 1 | AC3: Parallel 2 | AD3: Parallel 3 | AE3: Mean value | AF3: Error bar
B4: 0 | C4: 1558.67 | D4: 1630.91 | E4: 1396.43 | F4: =AVERAGE(C4:E4) -> 1528.67 | G4: =STDEVA(C4:E4) -> 120.0842105 | H4: 1478.27 | I4: 1560.16 | J4: 1336.38 | K4: =AVERAGE(H4:J4) -> 1458.27 | L4: =STDEVA(H4:J4) -> 113.222666 | M4: 1476.86 | N4: 1480.92 | O4: 1532.8 | P4: =AVERAGE(M4:O4) -> 1496.86 | Q4: =STDEVA(M4:O4) -> 31.19108206 | R4: 1552.62 | S4: 1480.35 | T4: 1564.89 | U4: =AVERAGE(R4:T4) -> 1532.62 | V4: =STDEVA(R4:T4) -> 45.68099058 | W4: 1493.39 | X4: 1483.4 | Y4: 1493.38 | Z4: =AVERAGE(W4:Y4) -> 1490.056667 | AA4: =STDEVA(W4:Y4) -> 5.764844606 | AB4: 1580.78 | AC4: 1610.33 | AD4: 1521.23 | AE4: =AVERAGE(AB4:AD4) -> 1570.78 | AF4: =STDEVA(AB4:AD4) -> 45.3839454
B5: 10 | C5: 1257.34 | D5: 1258.17 | E5: 1166.51 | F5: =AVERAGE(C5:E5) -> 1227.34 | G5: =STDEVA(C5:E5) -> 52.68195991 | H5: 1286.9 | I5: 1381.03 | J5: 1132.77 | K5: =AVERAGE(H5:J5) -> 1266.9 | L5: =STDEVA(H5:J5) -> 125.3325851 | M5: 1219.44 | N5: 1209.9 | O5: 1288.98 | P5: =AVERAGE(M5:O5) -> 1239.44 | Q5: =STDEVA(M5:O5) -> 43.16725148 | R5: 1425.14 | S5: 1335.35 | T5: 1454.93 | U5: =AVERAGE(R5:T5) -> 1405.14 | V5: =STDEVA(R5:T5) -> 62.24824576 | W5: 1401.38 | X5: 1400.6 | Y5: 1392.16 | Z5: =AVERAGE(W5:Y5) -> 1398.046667 | AA5: =STDEVA(W5:Y5) -> 5.112898721 | AB5: 1556.42 | AC5: 1608.82 | AD5: 1474.02 | AE5: =AVERAGE(AB5:AD5) -> 1546.42 | AF5: =STDEVA(AB5:AD5) -> 67.95410216
B6: 20 | C6: 905.81 | D6: 927.01 | E6: 794.61 | F6: 875.81 | G6: 71.11568041 | H6: 1058.32 | I6: 1090.06 | J6: 966.58 | K6: 1038.32 | L6: 64.1235339 | M6: 1027.86 | N6: 1034.29 | O6: 1081.43 | P6: 1047.86 | Q6: 29.24969914 | R6: 1257.07 | S6: 1163.04 | T6: 1291.1 | U6: 1237.07 | V6: 66.33129653 | W6: 1258.85 | X6: 1300.35 | Y6: 1207.35 | Z6: 1255.516667 | AA6: 46.58951957 | AB6: 1547.06 | AC6: 1603.56 | AD6: 1460.56 | AE6: 1537.06 | AF6: 72.02256591
B7: 30 | C7: 578.24 | D7: 625.44 | E7: 441.04 | F7: 548.24 | G7: 95.79060497 | H7: 789.84 | I7: 784.77 | J7: 734.91 | K7: 769.84 | L7: 30.35629918 | M7: 789.52 | N7: 787.22 | O7: 851.82 | P7: 809.52 | Q7: 36.65092086 | R7: 1046.29 | S7: 968.18 | T7: 1064.4 | U7: 1026.29 | V7: 51.13288668 | W7: 1100.53 | X7: 1149.27 | Y7: 1041.79 | Z7: 1097.196667 | AA7: 53.81747795 | AB7: 1539.89 | AC7: 1606.07 | AD7: 1443.71 | AE7: 1529.89 | AF7: 81.64062959
B8: 40 | C8: 233.23 | D8: 306.94 | E8: 69.52 | F8: 203.23 | G8: 121.5198095 | H8: 515.09 | I8: 520.93 | J8: 449.25 | K8: 495.09 | L8: 39.80584882 | M8: 562.13 | N8: 576.35 | O8: 607.91 | P8: 582.13 | Q8: 23.43092828 | R8: 842.78 | S8: 761.42 | T8: 864.14 | U8: 822.78 | V8: 54.20193354 | W8: 956.91 | X8: 988.62 | Y8: 905.2 | Z8: 950.2433333 | AA8: 42.10768853 | AB8: 1521.71 | AC8: 1550.69 | AD8: 1462.73 | AE8: 1511.71 | AF8: 44.82455131
B9: 50 | C9: 16.61 | D9: 88.19 | E9: -147.41 | F9: -14.20333333 | G9: 120.7846685 | H9: 305.02 | I9: 322.17 | J9: 227.87 | K9: 285.02 | L9: 50.23069281 | M9: 391.66 | N9: 405.69 | O9: 437.63 | P9: 411.66 | Q9: 23.55930602 | R9: 708.94 | S9: 612.88 | T9: 745 | U9: 688.94 | V9: 68.29292496 | W9: 845.2 | X9: 846.86 | Y9: 813.54 | Z9: 835.2 | AA9: 18.77646399 | AB9: 1504.46 | AC9: 1497.16 | AD9: 1481.76 | AE9: 1494.46 | AF9: 11.58835623
B10: 60 | H10: 196.27 | I10: 216.35 | J10: 116.19 | K10: 176.27 | L10: 52.99062559 | M10: 271.97 | N10: 259.47 | O10: 344.47 | P10: 291.97 | Q10: 45.89389938 | R10: 511.04 | S10: 435.76 | T10: 526.32 | U10: 491.04 | V10: 48.47966997 | W10: 771.94 | X10: 783.83 | Y10: 730.05 | Z10: 761.94 | AA10: 28.25016991 | AB10: 1492.7 | AC10: 1499 | AD10: 1456.4 | AE10: 1482.7 | AF10: 22.99325988

Sheet Fig. 1j
B2: ATC concentration (ng/mL) | C2: 200 | H2: 100 | M2: 50 | R2: 20 | W2: 10 | AB2: 0
B3: Time (h) | C3: Parallel 1 | D3: Parallel 2 | E3: Parallel 3 | F3: Mean value | G3: Error bar | H3: Parallel 1 | I3: Parallel 2 | J3: Parallel 3 | K3: Mean value | L3: Error bar | M3: Parallel 1 | N3: Parallel 2 | O3: Parallel 3 | P3: Mean value | Q3: Error bar | R3: Parallel 1 | S3: Parallel 2 | T3: Parallel 3 | U3: Mean value | V3: Error bar | W3: Parallel 1 | X3: Parallel 2 | Y3: Parallel 3 | Z3: Mean value | AA3: Error bar | AB3: Parallel 1 | AC3: Parallel 2 | AD3: Parallel 3 | AE3: Mean value | AF3: Error bar
B4: 0 | C4: 58.2 | D4: 62.02 | E4: 56.37 | F4: =AVERAGE(C4:E4) -> 58.86333333 | G4: =STDEVA(C4:E4) -> 2.882816909 | H4: 56.2 | I4: 64.13 | J4: 52.26 | K4: =AVERAGE(H4:J4) -> 57.53 | L4: =STDEVA(H4:J4) -> 6.045734033 | M4: 42.2 | N4: 52.52 | O4: 31.87 | P4: =AVERAGE(M4:O4) -> 42.19666667 | Q4: =STDEVA(M4:O4) -> 10.3250004 | R4: 79.11 | S4: 97.89 | T4: 58.3 | U4: =AVERAGE(R4:T4) -> 78.43333333 | V4: =STDEVA(R4:T4) -> 19.80367222 | W4: 4.35 | X4: 1.05 | Y4: 1.69 | Z4: =AVERAGE(W4:Y4) -> 2.363333333 | AA4: =STDEVA(W4:Y4) -> 1.750009524 | AB4: 6.95 | AC4: 1.76 | AD4: 6.13 | AE4: =AVERAGE(AB4:AD4) -> 4.946666667 | AF4: =STDEVA(AB4:AD4) -> 2.790023895
B5: 1 | C5: 250.1 | D5: 262.59 | E5: 239.68 | F5: =AVERAGE(C5:E5) -> 250.79 | G5: =STDEVA(C5:E5) -> 11.4705754 | H5: 190.3 | I5: 213.64 | J5: 168.95 | K5: =AVERAGE(H5:J5) -> 190.9633333 | L5: =STDEVA(H5:J5) -> 22.35238317 | M5: 110.5 | N5: 123.08 | O5: 96.91 | P5: =AVERAGE(M5:O5) -> 110.1633333 | Q5: =STDEVA(M5:O5) -> 13.08824791 | R5: 97 | S5: 115.34 | T5: 76.65 | U5: =AVERAGE(R5:T5) -> 96.33 | V5: =STDEVA(R5:T5) -> 19.3536999 | W5: 31 | X5: 14.75 | Y5: 41.24 | Z5: =AVERAGE(W5:Y5) -> 28.99666667 | AA5: =STDEVA(W5:Y5) -> 13.35814483 | AB5: 24 | AC5: 8.65 | AD5: 33.34 | AE5: =AVERAGE(AB5:AD5) -> 21.99666667 | AF5: =STDEVA(AB5:AD5) -> 12.46631595
B6: 2 | C6: 517 | D6: 539.92 | E6: 496.07 | F6: 517.6633333 | G6: 21.93252455 | H6: 378.8 | I6: 437.35 | J6: 322.24 | K6: 379.4633333 | L6: 57.55786682 | M6: 178.75 | N6: 202.24 | O6: 155.25 | P6: 178.7466667 | Q6: 23.49500018 | R6: 117.8 | S6: 139.56 | T6: 94.03 | U6: 117.13 | V6: 22.77239337 | W6: 47.35 | X6: 5.96 | Y6: 82.73 | Z6: 45.34666667 | AA6: 38.42418813 | AB6: 39.95 | AC6: -11.46 | AD6: 85.37 | AE6: 37.95333333 | AF6: 48.4458691
B7: 3 | C7: 718.4 | D7: 799.17 | E7: 639.62 | F7: 719.0633333 | G7: 79.77706834 | H7: 592.85 | I7: 663.79 | J7: 525.09 | K7: 593.91 | L7: 69.35607544 | M7: 357.45 | N7: 391.4 | O7: 323.4 | P7: 357.4166667 | Q7: 34.00001225 | R7: 178.5 | S7: 222.47 | T7: 132.52 | U7: 177.83 | V7: 44.97874276 | W7: 104.9 | X7: -21.83 | Y7: 225.63 | Z7: 102.9 | AA7: 123.7421226 | AB7: 68.5 | AC7: 35.38 | AD7: 95.61 | AE7: 66.49666667 | AF7: 30.16493384
B8: 4 | C8: 1012.5 | D8: 1122.59 | E8: 904.4 | F8: 1013.163333 | G8: 109.0965125 | H8: 768.45 | I8: 851.15 | J8: 687.74 | K8: 769.1133333 | L8: 81.70701949 | M8: 438 | N8: 494.29 | O8: 381.75 | P8: 438.0133333 | Q8: 56.27000118 | R8: 214.25 | S8: 269.3 | T8: 157.19 | U8: 213.58 | V8: 56.058003 | W8: 137.45 | X8: 58.02 | Y8: 210.89 | Z8: 135.4533333 | AA8: 76.45455666 | AB8: 62.8 | AC8: 22.19 | AD8: 97.43 | AE8: 60.80666667 | AF8: 37.65958621
B9: 5 | C9: 1398.8 | D9: 1562.75 | E9: 1236.84 | F9: 1399.463333 | G9: 162.9560126 | H9: 961.85 | I9: 1062.39 | J9: 863.3 | K9: 962.5133333 | L9: 99.54665757 | M9: 571.45 | N9: 650.56 | O9: 492.89 | P9: 571.6333333 | Q9: 78.83515988 | R9: 349.71 | S9: 391.24 | T9: 306.15 | U9: 349.0333333 | V9: 42.54903563 | W9: 150.15 | X9: 43.02 | Y9: 251.29 | Z9: 148.1533333 | AA9: 104.1493554 | AB9: 65 | AC9: 39.52 | AD9: 84.47 | AE9: 62.99666667 | AF9: 22.54186402

Sheet Fig. 2b
B2: Fluorescence intensity | I2: Cell growth
B3: Time (h) | C3: rrnB P1-(teF)YFP | I3: Time (h) | J3: rrnB P1-(teF)YFP
C4: Ptet-1 | D4: Pfic-tev | E4: PbolA-tev | F4: PS4-tev | G4: PS60-tev | J4: Ptet-1 | K4: Pfic-tev | L4: PbolA-tev | M4: PS4-tev | N4: PS60-tev
B5: 0 | C5: 13.18591 | D5: -1.87766 | E5: -6.45756 | F5: -7.28741 | G5: -5.29668 | I5: 0 | J5: 0.0224 | K5: 0.0222 | L5: 0.0227 | M5: 0.0257 | N5: 0.0198
B6: 0.5 | C6: 17.11208 | D6: -4.62031 | E6: -8.74667 | F6: -2.05899 | G6: -5.28288 | I6: 0.5 | J6: 0.0286 | K6: 0.0306 | L6: 0.028 | M6: 0.0338 | N6: 0.0288
B7: 1 | C7: 16.81253 | D7: -4.86155 | E7: -2.69585 | F7: -5.72161 | G7: -8.35464 | I7: 1 | J7: 0.0487 | K7: 0.0564 | L7: 0.0475 | M7: 0.0625 | N7: 0.0469
B8: 1.5 | C8: 17.41128 | D8: -2.75163 | E8: 5.93397 | F8: 1.10024 | G8: -0.37018 | I8: 1.5 | J8: 0.0897 | K8: 0.1053 | L8: 0.0836 | M8: 0.1149 | N8: 0.0858
B9: 2 | C9: 23.70328 | D9: 2.22914 | E9: -3.95962 | F9: -5.12611 | G9: -5.82581 | I9: 2 | J9: 0.1537 | K9: 0.1882 | L9: 0.1538 | M9: 0.2048 | N9: 0.1563
B10: 2.5 | C10: 32.37176 | D10: 3.33616 | E10: -2.48386 | F10: -6.18099 | G10: -1.33279 | I10: 2.5 | J10: 0.27 | K10: 0.3129 | L10: 0.2697 | M10: 0.3222 | N10: 0.2735
B11: 3 | C11: 35.21782 | D11: 5.93771 | E11: 5.93397 | F11: -5.84962 | G11: 1.16996 | I11: 3 | J11: 0.3841 | K11: 0.4325 | L11: 0.4015 | M11: 0.4589 | N11: 0.4043
B12: 3.5 | C12: 43.97758 | D12: 9.12851 | E12: 7.11668 | F12: -6.05299 | G12: 1.59124 | I12: 3.5 | J12: 0.5569 | K12: 0.6475 | L12: 0.5557 | M12: 0.6764 | N12: 0.5812
B13: 4 | C13: 48.90572 | D13: 14.77384 | E13: 16.36199 | F13: 0.25678 | G13: 2.78164 | I13: 4 | J13: 0.7656 | K13: 0.8349 | L13: 0.7782 | M13: 0.8785 | N13: 0.7929
B14: 4.5 | C14: 55.14432 | D14: 34.55042 | E14: 23.46764 | F14: 0.98332 | G14: 3.78214 | I14: 4.5 | J14: 0.9375 | K14: 1.0001 | L14: 0.952 | M14: 1.02 | N14: 0.9652
B15: 5 | C15: 61.75193 | D15: 49.86956 | E15: 30.51829 | F15: 1.37892 | G15: 5.57296 | I15: 5 | J15: 1.0533 | K15: 1.0979 | L15: 1.0733 | M15: 1.1216 | N15: 1.079
B16: 5.5 | C16: 63.67202 | D16: 58.96028 | E16: 34.43938 | F16: 7.95195 | G16: 6.46607 | I16: 5.5 | J16: 1.139 | K16: 1.163 | L16: 1.158 | M16: 1.1831 | N16: 1.1596
B17: 6 | C17: 77.69561 | D17: 83.68931 | E17: 50.43648 | F17: 12.40572 | G17: 8.21219 | I17: 6 | J17: 1.1875 | K17: 1.2074 | L17: 1.207 | M17: 1.2275 | N17: 1.207
B18: 6.5 | C18: 118.48837 | D18: 112.10594 | E18: 78.00097 | F18: 18.90316 | G18: 19.45197 | I18: 6.5 | J18: 1.2196 | K18: 1.2336 | L18: 1.2422 | M18: 1.2493 | N18: 1.2381
B19: 7 | C19: 165.25219 | D19: 176.10059 | E19: 121.57609 | F19: 31.59071 | G19: 20.65128 | I19: 7 | J19: 1.2403 | K19: 1.2512 | L19: 1.2625 | M19: 1.2656 | N19: 1.2573
B20: 7.5 | C20: 197.84399 | D20: 225.22223 | E20: 147.36805 | F20: 39.15602 | G20: 20.80463 | I20: 7.5 | J20: 1.2534 | K20: 1.2637 | L20: 1.2757 | M20: 1.2747 | N20: 1.2691
B21: 8 | C21: 224.00707 | D21: 241.16187 | E21: 154.32951 | F21: 27.71198 | G21: 10.07982 | I21: 8 | J21: 1.2628 | K21: 1.2722 | L21: 1.2862 | M21: 1.2834 | N21: 1.2784
B22: 8.5 | C22: 236.25594 | D22: 236.46498 | E22: 159.11859 | F22: 21.18565 | G22: 4.5528 | I22: 8.5 | J22: 1.2649 | K22: 1.2741 | L22: 1.2891 | M22: 1.2872 | N22: 1.282
B23: 9 | C23: 233.86084 | D23: 239.30776 | E23: 144.03373 | F23: 13.55614 | G23: 0.47881 | I23: 9 | J23: 1.2683 | K23: 1.275 | L23: 1.2929 | M23: 1.2901 | N23: 1.2851
B24: 9.5 | C24: 237.94297 | D24: 229.60636 | E24: 134.27229 | F24: 1.76655 | G24: 0.78816 | I24: 9.5 | J24: 1.2709 | K24: 1.2766 | L24: 1.2966 | M24: 1.2911 | N24: 1.2886
B25: 10 | C25: 244.15633 | D25: 218.90359 | E25: 122.26112 | F25: 2.66132 | G25: 0.28196 | I25: 10 | J25: 1.2699 | K25: 1.2768 | L25: 1.2965 | M25: 1.2904 | N25: 1.2902
B26: 10.5 | C26: 240.72383 | D26: 211.30775 | E26: 110.85376 | F26: 0.31386 | G26: 0.47001 | I26: 10.5 | J26: 1.2695 | K26: 1.2767 | L26: 1.2965 | M26: 1.2904 | N26: 1.2907
B27: 11 | C27: 245.07518 | D27: 204.75416 | E27: 100.4533 | F27: 0.35001 | G27: 0.04703 | I27: 11 | J27: 1.2664 | K27: 1.2729 | L27: 1.2935 | M27: 1.2868 | N27: 1.2874
B28: 11.5 | C28: 233.20745 | D28: 195.31446 | E28: 93.80328 | F28: 0.70822 | G28: 0.92556 | I28: 11.5 | J28: 1.2625 | K28: 1.2668 | L28: 1.2895 | M28: 1.2822 | N28: 1.2835
B29: 12 | C29: 242.26744 | D29: 188.67081 | E29: 79.43253 | F29: 0.21793 | G29: 0.41688 | I29: 12 | J29: 1.2592 | K29: 1.2635 | L29: 1.2865 | M29: 1.2794 | N29: 1.2807
B30: 12.5 | C30: 241.46188 | D30: 178.16843 | E30: 61.95044 | F30: 0.67282 | G30: 0.42695 | I30: 12.5 | J30: 1.2555 | K30: 1.2592 | L30: 1.2836 | M30: 1.2759 | N30: 1.2776
B31: 13 | C31: 234.44139 | D31: 168.76661 | E31: 42.95467 | F31: 0.03674 | G31: 0.77044
B32: 15 | C32: 233.81084 | D32: 146.56512 | E32: 15.31456 | F32: 0.16588 | G32: 0.02156
B33: 17 | C33: 234.01707 | D33: 114.35151 | E33: 1.01529 | F33: 0.18861 | G33: 0.56104
B34: 19 | C34: 229.25623 | D34: 95.31564 | E34: 0.13548 | F34: 0.80059 | G34: 0.15852
B35: 21 | C35: 231.94297 | D35: 74.18542 | E35: 0.13656 | F35: 0.18845 | G35: 0.13625
B36: 23 | C36: 224.68079 | D36: 48.43545 | E36: 1.60121 | F36: 0.03971 | G36: 0.06095

Sheet Fig. 2c
C2: Ptet-tev | D2: Pfic-tev | E2: PbolA-tev | F2: Ps4-tev | G2: Ps60-tev
B3: rrnB P1-(teF)YFP | C3: 0.2 | D3: 9 | E3: 8.5 | F3: 7.5 | G3: 7
B4: rpsT P2-(teF)YFP | C4: 1 | D4: 8 | E4: 8 | F4: 8 | G4: 7
B5: rpsJ-(teF)YFP | C5: 4 | D5: 10 | E5: 9.5 | F5: 8.5 | G5: 8
B6: Ptrc-(teF)YFP | C6: 3 | D6: 10 | E6: 10 | F6: 8.5 | G6: 8.5
B7: Ptrc-(teF)YFP | C7: 24 | D7: 24 | E7: 24 | F7: 24 | G7: 24

Sheet Fig. 2d
C2: GFP | E2: mCherry
C3: ATC- | D3: ATC＋ | E3: ATC- | F3: ATC＋
B4: Parallel 1 | C4: 295.46975 | D4: 2494.66 | E4: 285.246 | F4: 19.3385
B5: Parallel 2 | C5: 58.44475 | D5: 2881.017 | E5: 284 | F5: 20.3915
B6: Parallel 3 | C6: 340.32075 | D6: 2615.222 | E6: 322.992 | F6: 23.0725
B7: Parallel 4 | C7: 175.98375 | D7: 2717.147 | E7: 298.154 | F7: 25.9405
B8: Parallel 5 | C8: 60.87125 | D8: 2536.571 | E8: 314.826 | F8: 18.6735
B9: Parallel 6 | C9: 377.02275 | D9: 2339.636 | E9: 298.606 | F9: 18.2915

Sheet Fig. 2e
C2: GFP | E2: mCherry
C3: ATC- | D3: ATC＋ | E3: ATC- | F3: ATC＋
B4: Parallel 1 | C4: 168.45218 | D4: 1507.43147 | E4: 292.77794 | F4: 33.90698
B5: Parallel 2 | C5: 264.71984 | D5: 1820.50359 | E5: 267.74114 | F5: 30.5084
B6: Parallel 3 | C6: 218.59858 | D6: 1534.86624 | E6: 309.74477 | F6: 24.63246
B7: Parallel 4 | C7: 289.16807 | D7: 1754.9512 | E7: 294.98077 | F7: 37.12314
B8: Parallel 5 | C8: 222.48167 | D8: 1911.98345 | E8: 265.47248 | F8: 21.21852
B9: Parallel 6 | C9: 367.46121 | D9: 1734.25923 | E9: 236.25394 | F9: 34.01885

Sheet Fig. 3c
B2: Time (h) | C2: Control
C3: Parallel 1 | D3: Parallel 2 | E3: Parallel 3 | F3: Parallel 4 | G3: Parallel 5 | H3: Parallel 6 | I3: Mean value
B4: 0 | C4: 1.15 | D4: 69.161 | E4: 59.915 | F4: 198.95 | G4: 101.568 | H4: 89.884 | I4: 86.77133
B5: 0.5 | C5: 8.004 | D5: 78.1195 | E5: 97.6465 | F5: 267.5475 | G5: 221.5245 | H5: 352.8315 | I5: 170.94558
B6: 1 | C6: 141.5995 | D6: 246.813 | E6: 125.787 | F6: 264.7415 | G6: 369.5295 | H6: 252.2985 | I6: 233.4615
B7: 1.5 | C7: 219.1785 | D7: 266.3285 | E7: 271.699 | F7: 303.439 | G7: 379.477 | H7: 355.9365 | I7: 299.34308
B8: 2 | C8: 235.2325 | D8: 312.593 | E8: 330.05 | F8: 350.405 | G8: 334.9145 | H8: 439.898 | I8: 333.84883
B9: 2.5 | C9: 316.319 | D9: 396.4625 | E9: 405.72 | F9: 446.3725 | G9: 423.545 | H9: 452.157 | I9: 406.76267
B10: 3 | C10: 403.0865 | D10: 566.973 | E10: 474.9385 | F10: 484.334 | G10: 601.473 | H10: 664.5275 | I10: 532.55542
B11: 3.5 | C11: 432.929 | D11: 594.7685 | E11: 491.234 | F11: 616.975 | G11: 543.7775 | H11: 637.261 | I11: 552.82417
B12: 4 | C12: 583.8245 | D12: 634.8805 | E12: 698.004 | F12: 653.9475 | G12: 640.895 | H12: 702.4085 | I12: 652.32667
B13: 4.5 | C13: 673.44 | D13: 741.566 | E13: 686.1935 | F13: 744.3145 | G13: 701.8105 | H13: 753.2615 | I13: 716.76433
B14: 5 | C14: 721.4985 | D14: 779.2975 | E14: 767.3145 | F14: 786.968 | G14: 824.849 | H14: 810.8535 | I14: 781.79683
B15: 5.5 | C15: 733.539 | D15: 761.162 | E15: 838.994 | F15: 817.7995 | G15: 831.6685 | H15: 860.614 | I15: 807.29617
B16: 6 | C16: 763.2435 | D16: 781.5285 | E16: 876.4035 | F16: 827.425 | G16: 861.7985 | H16: 887.593 | I16: 832.99867
B17: 6.5 | C17: 869.5955 | D17: 886.627 | E17: 899.277 | F17: 942.4365 | G17: 956.9035 | H17: 981.847 | I17: 922.78108
B18: 7 | C18: 982.92345 | D18: 993.52974 | E18: 963.63559 | F18: 1008.60725 | G18: 918.01126 | H18: 988.91778 | I18: 975.93751
B19: 7.5 | C19: 1001.9991 | D19: 887.82615 | E19: 1070.93343 | F19: 1034.50438 | G19: 927.84686 | H19: 1010.2027 | I19: 988.88544
B20: 8 | C20: 1043.1016 | D20: 1041.94229 | E20: 993.97569 | F20: 1015.43896 | G20: 1088.16473 | H20: 1092.03473 | I20: 1045.77633
B21: 8.5 | C21: 1037.70396 | D21: 1035.3411 | E21: 1069.37122 | F21: 1099.21953 | G21: 1051.6336 | H21: 1150.87052 | I21: 1074.02332
B22: 9 | C22: 1133.80149 | D22: 1070.37483 | E22: 1148.90132 | F22: 1186.7966 | G22: 1157.9188 | H22: 1290.28024 | I22: 1164.67888
B23: 9.5 | C23: 1187.9369 | D23: 1222.18031 | E23: 1252.48319 | F23: 1265.46234 | G23: 1288.84443 | H23: 1435.11126 | I23: 1275.33641
B24: 10 | C24: 1312.68176 | D24: 1291.46044 | E24: 1286.89564 | F24: 1406.21457 | G24: 1437.34022 | H24: 1471.44269 | I24: 1367.67255
B25: 10.5 | C25: 1411.22895 | D25: 1519.73279 | E25: 1406.15261 | F25: 1588.57049 | G25: 1533.22593 | H25: 1543.08733 | I25: 1500.33302
B26: 11 | C26: 1571.38816 | D26: 1570.06336 | E26: 1514.94288 | F26: 1654.56615 | G26: 1480.48241 | H26: 1641.63275 | I26: 1572.17928
B27: 11.5 | C27: 1559.8127 | D27: 1619.16357 | E27: 1548.42382 | F27: 1560.84103 | G27: 1538.47295 | H27: 1699.92373 | I27: 1587.77297
B28: 12 | C28: 1614.02614 | D28: 1511.63723 | E28: 1566.19336 | F28: 1641.72287 | G28: 1615.68296 | H28: 1623.0675 | I28: 1595.38834

Sheet Fig. 3d
B2: Time (h) | C2: pbO
C3: Parallel 1 | D3: Parallel 2 | E3: Parallel 3 | F3: Parallel 4 | G3: Parallel 5 | H3: Parallel 6 | I3: Mean value
B4: 0 | C4: 166.02075 | D4: 38.62705 | E4: 58.56605 | F4: 125.5903 | G4: 143.5862 | H4: 94.73565 | I4: 104.521
B5: 0.5 | C5: 331.6605 | D5: 244.9195 | E5: 269.93215 | F5: 352.1202 | G5: 185.45175 | H5: 356.08895 | I5: 290.02884
B6: 1 | C6: 165.8747 | D6: 160.1216 | E6: 134.1501 | F6: 163.4109 | G6: 101.97465 | H6: 128.7907 | I6: 142.38711
B7: 1.5 | C7: 531.42515 | D7: 536.2067 | E7: 595.7443 | F7: 671.9189 | G7: 555.371 | H7: 545.338 | I7: 572.66734
B8: 2 | C8: 128.44145 | D8: 301.75835 | E8: 380.4158 | F8: 90.8812 | G8: 54.84495 | H8: 175.4505 | I8: 188.63204
B9: 2.5 | C9: 255.0414 | D9: 334.3021 | E9: 326.009 | F9: 223.0501 | G9: 301.69485 | H9: 294.68445 | I9: 289.13032
B10: 3 | C10: 567.7408 | D10: 557.0601 | E10: 599.44635 | F10: 476.15475 | G10: 553.4025 | H10: 586.4479 | I10: 556.70873
B11: 3.5 | C11: 383.21615 | D11: 409.03525 | E11: 383.5908 | F11: 342.5698 | G11: 311.74055 | H11: 419.7985 | I11: 374.99184
B12: 4 | C12: 216.9287 | D12: 187.4393 | E12: 208.1403 | F12: 214.5665 | G12: 216.42705 | H12: 238.66475 | I12: 213.69443
B13: 4.5 | C13: 449.1355 | D13: 459.25105 | E13: 476.1103 | F13: 475.97695 | G13: 448.8942 | H13: 504.6472 | I13: 469.00253
B14: 5 | C14: 94.7293 | D14: 334.35925 | E14: 291.20465 | F14: 93.472 | G14: 155.61945 | H14: 225.2091 | I14: 199.09896
B15: 5.5 | C15: 261.874 | D15: 253.71425 | E15: 268.8463 | F15: 206.3623 | G15: 175.7553 | H15: 333.3369 | I15: 249.98151
B16: 6 | C16: 489.73105 | D16: 532.08555 | E16: 524.3322 | F16: 432.69535 | G16: 574.8782 | H16: 585.22235 | I16: 523.15745
B17: 6.5 | C17: 372.28145 | D17: 530.06625 | E17: 508.0127 | F17: 431.76825 | G17: 485.71785 | H17: 563.37835 | I17: 481.87081
B18: 7 | C18: 351.76354 | D18: 500.8509 | E18: 480.01115 | F18: 407.97065 | G18: 458.94659 | H18: 532.32601 | I18: 455.31147
B19: 7.5 | C19: 427.89557 | D19: 449.27908 | E19: 474.92956 | F19: 442.24186 | G19: 422.44035 | H19: 495.17826 | I19: 451.99411
B20: 8 | C20: 420.2284 | D20: 533.67985 | E20: 555.38206 | F20: 435.41963 | G20: 510.91578 | H20: 556.53055 | I20: 502.02605
B21: 8.5 | C21: 293.76408 | D21: 478.55433 | E21: 531.17807 | F21: 316.35711 | G21: 407.58225 | H21: 525.11598 | I21: 425.4253
B22: 9 | C22: 453.65418 | D22: 618.79229 | E22: 604.76882 | F22: 419.06378 | G22: 579.42962 | H22: 652.84848 | I22: 554.75953
B23: 9.5 | C23: 645.25385 | D23: 834.8187 | E23: 890.36394 | F23: 581.56267 | G23: 890.02017 | H23: 923.98487 | I23: 794.33403
B24: 10 | C24: 696.39561 | D24: 891.29898 | E24: 914.01601 | F24: 781.13456 | G24: 809.53683 | H24: 937.25524 | I24: 838.27287
B25: 10.5 | C25: 879.26156 | D25: 1030.32206 | E25: 1100.94766 | F25: 873.9101 | G25: 1025.72482 | H25: 1061.58 | I25: 995.29103
B26: 11 | C26: 891.24027 | D26: 1073.28088 | E26: 1049.44279 | F26: 955.31024 | G26: 1020.97737 | H26: 1132.84043 | I26: 1020.51533
B27: 11.5 | C27: 827.3475 | D27: 1054.2895 | E27: 906.0695 | F27: 1057.9855 | G27: 931.5265 | H27: 1081.2475 | I27: 976.411
B28: 12 | C28: 801.3705 | D28: 753.4405 | E28: 840.5025 | F28: 834.4875 | G28: 894.9715 | H28: 857.9455 | I28: 830.453

Sheet Fig. 4
A7: Control system
A20: Control system
A35: pbO system
A47: pbO system

Sheet Fig. 5b
B2: Strains | C2: Shikimate titer (g/L) | I2: Strains | J2: OD600
C3: Parallel 1 | D3: Parallel 2 | E3: Parallel 3 | F3: Mean value | G3: Error bar | J3: Parallel 1 | K3: Parallel 2 | L3: Parallel 3 | M3: Mean value | N3: Error bar
B4: + | C4: 0.03 | D4: 0.05 | E4: 0.06 | F4: =AVERAGE(C4:E4) -> 0.04666666667 | G4: =STDEVA(C4:E4) -> 0.01527525232 | I4: + | J4: 7.65 | K4: 7.11 | L4: 7.38 | M4: =AVERAGE(J4:L4) -> 7.38 | N4: =STDEVA(J4:L4) -> 0.27
B5: - | C5: 0 | D5: 0 | E5: 0 | F5: =AVERAGE(C5:E5) -> 0 | G5: =STDEVA(C5:E5) -> 0 | I5: - | J5: 0.13 | K5: 0.13 | L5: 0.13 | M5: =AVERAGE(J5:L5) -> 0.13 | N5: =STDEVA(J5:L5) -> 0
B6: DS1 | C6: 0.02 | D6: 0.035 | E6: 0.072 | F6: 0.04233333333 | G6: 0.02676440422 | I6: DS1 | J6: 0.16 | K6: 0.16 | L6: 0.15 | M6: 0.1566666667 | N6: 0.005773502692
B7: DS2 | C7: 0.238 | D7: 0.272 | E7: 0.185 | F7: 0.2316666667 | G7: 0.04384442192 | I7: DS2 | J7: 0.3 | K7: 0.28 | L7: 0.25 | M7: 0.2766666667 | N7: 0.02516611478
B8: DS3 | C8: 0.245 | D8: 0.278 | E8: 0.211 | F8: 0.2446666667 | G8: 0.03350124376 | I8: DS3 | J8: 0.47 | K8: 0.45 | L8: 0.42 | M8: 0.4466666667 | N8: 0.02516611478
B9: DS4 | C9: 0.444 | D9: 0.4566 | E9: 0.442 | F9: 0.4475333333 | G9: 0.007915385861 | I9: DS4 | J9: 0.9 | K9: 0.89 | L9: 0.88 | M9: 0.89 | N9: 0.01
B10: DS5 | C10: 1.586 | D10: 1.662 | E10: 1.521 | F10: 1.589666667 | G10: 0.07057147677 | I10: DS5 | J10: 6.01 | K10: 5.94 | L10: 5.86 | M10: 5.936666667 | N10: 0.07505553499
B11: DS6 | C11: 1.879 | D11: 1.7677 | E11: 1.981 | F11: 1.8759 | G11: 0.1066837851 | I11: DS6 | J11: 6.32 | K11: 5.92 | L11: 5.89 | M11: 6.043333333 | N11: 0.2400694344
B12: DS7 | C12: 2.139 | D12: 2.034 | E12: 2.244 | F12: 2.139 | G12: 0.105 | I12: DS7 | J12: 7.18 | K12: 6.82 | L12: 6.45 | M12: 6.816666667 | N12: 0.3650114153
B13: DS8 | C13: 1.214 | D13: 1.335 | E13: 1.095 | F13: 1.214666667 | G13: 0.1200013889 | I13: DS8 | J13: 6.8 | K13: 6.7 | L13: 5.99 | M13: 6.496666667 | N13: 0.4416257843
B14: DS9 | C14: 1.292 | D14: 1.345 | E14: 1.238 | F14: 1.291666667 | G14: 0.05350077881 | I14: DS9 | J14: 6.43 | K14: 6.22 | L14: 6 | M14: 6.216666667 | N14: 0.215019379
B15: DS10 | C15: 1.547 | D15: 1.42 | E15: 1.684 | F15: 1.550333333 | G15: 0.1320315619 | I15: DS10 | J15: 6.42 | K15: 6.35 | L15: 6.27 | M15: 6.346666667 | N15: 0.07505553499
B16: DS11 | C16: 0.627 | D16: 0.738 | E16: 0.525 | F16: 0.63 | G16: 0.1065316854 | I16: DS11 | J16: 6.41 | K16: 6.32 | L16: 6.2 | M16: 6.31 | N16: 0.1053565375
B17: DS12 | C17: 0.445 | D17: 0.621 | E17: 0.285 | F17: 0.4503333333 | G17: 0.1680634801 | I17: DS12 | J17: 6.35 | K17: 6.71 | L17: 7.1 | M17: 6.72 | N17: 0.3750999867

Sheet Fig. 5c
B2: Strains | C2: Shikimate titer (g/L)
C3: Parallel 1 | D3: Parallel 2 | E3: Parallel 3 | F3: Mean value | G3: Error bar
B4: S4 | C4: 0 | D4: 0 | E4: 0 | F4: =AVERAGE(C4:E4) -> 0 | G4: =STDEVA(C4:E4) -> 0
B5: D13 | C5: 0.46 | D5: 0.29 | E5: 0.36 | F5: =AVERAGE(C5:E5) -> 0.37 | G5: =STDEVA(C5:E5) -> 0.08544003745
B6: D14 | C6: 1.36 | D6: 1.57 | E6: 1.15 | F6: 1.36 | G6: 0.21
B7: DS7 | C7: 2 | D7: 2.24 | E7: 2.18 | F7: 2.14 | G7: 0.12489996

Sheet Fig. 5d
B2: Time (h) | C2: Activity of shikimate kinase I (U/mg)
C3: Strain S4 | E3: Strain D13 | G3: Strain D14 | I3: Strain DS7
C4: Mean value | D4: Error bar | E4: Mean value | F4: Error bar | G4: Mean value | H4: Error bar | I4: Mean value | J4: Error bar
B5: 6 | C5: 0.15 | D5: 0.11 | E5: 11.59 | F5: 1.13 | G5: 9.45 | H5: 1.14 | I5: 8.96 | J5: 0.46
B6: 12 | C6: 0.21 | D6: 0.13 | E6: 17.48 | F6: 1.49 | G6: 7.46 | H6: 0.94 | I6: 7.1 | J6: 0.85
B7: 24 | C7: 0.19 | D7: 0.49 | E7: 12.4 | F7: 0.85 | G7: 3.15 | H7: 0.21 | I7: 1.83 | J7: 0.22
B8: 36 | C8: 0.14 | D8: 0.54 | E8: 10.1 | F8: 1.15 | G8: 4.59 | H8: 0.55 | I8: 1.44 | J8: 0.46

Sheet Fig. 5e
B2: Strain DS7 with dynamic regulation system (5 L bioreactor)
B3: Time (h) | C3: OD600 | G3: Glucose (g/L) | K3: Shikimate (g/L)
C4: Parallel 1 | D4: Parallel 2 | E4: Mean value | F4: Error bar | G4: Parallel 1 | H4: Parallel 2 | I4: Mean value | J4: Error bar | K4: Parallel 1 | L4: Parallel 2 | M4: Mean value | N4: Error bar
B5: 0 | C5: 0.2 | D5: 0.2 | E5: =AVERAGE(C5:D5) -> 0.2 | F5: =AVEDEV(C5:D5) -> 0 | G5: 40 | H5: 40 | I5: =AVERAGE(G5:H5) -> 40 | J5: =AVEDEV(G5:H5) -> 0 | K5: 0 | L5: 0 | M5: =AVERAGE(K5:L5) -> 0 | N5: =AVEDEV(K5:L5) -> 0
B6: 9 | C6: 1.16 | D6: 0.95 | E6: 1.055 | F6: 0.105 | G6: 39.4 | H6: 39.5 | I6: 39.45 | J6: 0.05 | K6: 0 | L6: 0 | M6: 0 | N6: 0
B7: 12 | C7: 2.16 | D7: 1.6 | E7: 1.88 | F7: 0.28 | G7: 38.9 | H7: 39.05 | I7: 38.975 | J7: 0.075 | K7: 0.08 | L7: 0.37 | M7: 0.225 | N7: 0.145
B8: 16 | C8: 2.68 | D8: 2.21 | E8: 2.445 | F8: 0.235 | G8: 36.3 | H8: 39.6 | I8: 37.95 | J8: 1.65 | K8: 0.14 | L8: 0.56 | M8: 0.35 | N8: 0.21
B9: 20 | C9: 4 | D9: 3.65 | E9: 3.825 | F9: 0.175 | G9: 36.8 | H9: 37.1 | I9: 36.95 | J9: 0.15 | K9: 0.43 | L9: 0.84 | M9: 0.635 | N9: 0.205
B10: 24 | C10: 7.64 | D10: 5.45 | E10: 6.545 | F10: 1.095 | G10: 35.1 | H10: 36.8 | I10: 35.95 | J10: 0.85 | K10: 0.54 | L10: 1.07 | M10: 0.805 | N10: 0.265
B11: 30 | C11: 11.81 | D11: 6.78 | E11: 9.295 | F11: 2.515 | G11: 31.1 | H11: 32.8 | I11: 31.95 | J11: 0.85 | K11: 1.42 | L11: 1.47 | M11: 1.445 | N11: 0.025
B12: 36 | C12: 17.81 | D12: 13.3 | E12: 15.555 | F12: 2.255 | G12: 22.9 | H12: 25.04 | I12: 23.97 | J12: 1.07 | K12: 2.57 | L12: 3.03 | M12: 2.8 | N12: 0.23
B13: 42 | C13: 21.69 | D13: 19.34 | E13: 20.515 | F13: 1.175 | G13: 15.2 | H13: 16.72 | I13: 15.96 | J13: 0.76 | K13: 3.21 | L13: 3.79 | M13: 3.5 | N13: 0.29
B14: 47 | C14: 27.6 | D14: 22.58 | E14: 25.09 | F14: 2.51 | G14: 6.4 | H14: 8.53 | I14: 7.465 | J14: 1.065 | K14: 4.78 | L14: 5.41 | M14: 5.095 | N14: 0.315
B15: 47 | C15: 27.27 | D15: 22.92 | E15: 25.095 | F15: 2.175 | G15: 46.9 | H15: 49.03 | I15: 47.965 | J15: 1.065 | K15: 4.78 | L15: 5.41 | M15: 5.095 | N15: 0.315
B16: 57 | C16: 32.95 | D16: 29.44 | E16: 31.195 | F16: 1.755 | G16: 39 | H16: 40.93 | I16: 39.965 | J16: 0.965 | K16: 6.32 | L16: 7.87 | M16: 7.095 | N16: 0.775
B17: 62 | C17: 37 | D17: 31.95 | E17: 34.475 | F17: 2.525 | G17: 29.5 | H17: 30.41 | I17: 29.955 | J17: 0.455 | K17: 9.12 | L17: 9.67 | M17: 9.395 | N17: 0.275
B18: 72 | C18: 40 | D18: 32.95 | E18: 36.475 | F18: 3.525 | G18: 10.4 | H18: 13.5 | I18: 11.95 | J18: 1.55 | K18: 12.21 | L18: 13.03 | M18: 12.62 | N18: 0.41

Sheet Fig. 5f
B2: Strains | C2: Shikimate titer (g/L)
C3: Control | E3: pbDRC
C4: Mean value | D4: Error bar | E4: Mean value | F4: Error bar
B5: MG1655 | C5: 0.05 | D5: 0.01788 | E5: 2.13954 | F5: 0.10552
B6: DH5a | C6: 0.19788 | D6: 0.03187 | E6: 1.44145 | F6: 0.07926
B7: JM109 | C7: 0.05663 | D7: 0.00376 | E7: 1.07026 | F7: 0.02506
B8: W3110 | C8: 0.19823 | D8: 0.03812 | E8: 1.54737 | F8: 0.23723
B9: ATCC8739 | C9: 0.06646 | D9: 0.02501 | E9: 1.31693 | F9: 0.12132
B10: B0013 | C10: 0.09275 | D10: 0.02358 | E10: 1.64323 | F10: 0.19788
B11: BL21 | C11: 0.03187 | D11: 0.01178 | E11: 1.20518 | F11: 0.08841
B12: HB101 | C12: 0.14722 | D12: 0.07101 | E12: 1.58879 | F12: 0.05532

Sheet Fig. 5g
B2: Strains | C2: Shikimate titer (g/L) | I2: Strains | J2: Acetate (g/L)
C3: Parallel 1 | D3: Parallel 2 | E3: Parallel 3 | F3: Mean value | G3: Error bar | J3: Parallel 1 | K3: Parallel 2 | L3: Parallel 3 | M3: Mean value | N3: Error bar
B4: GS60 | C4: 0.8 | D4: 0.75 | E4: 0.78 | F4: =AVERAGE(C4:E4) -> 0.7766666667 | G4: =STDEVA(C4:E4) -> 0.02516611478 | I4: GS60 | J4: 0 | K4: 0 | L4: 0 | M4: =AVERAGE(J4:L4) -> 0 | N4: =STDEVA(J4:L4) -> 0
B5: GS4 | C5: 1.32 | D5: 1.25 | E5: 1.17 | F5: =AVERAGE(C5:E5) -> 1.246666667 | G5: =STDEVA(C5:E5) -> 0.07505553499 | I5: GS4 | J5: 0 | K5: 0 | L5: 0 | M5: =AVERAGE(J5:L5) -> 0 | N5: =STDEVA(J5:L5) -> 0
B6: GbolA | C6: 1.65 | D6: 2.1 | E6: 1.88 | F6: 1.876666667 | G6: 0.2250185178 | I6: GbolA | J6: 0 | K6: 0 | L6: 0 | M6: 0 | N6: 0
B7: Gfic | C7: 1.08 | D7: 1.24 | E7: 0.95 | F7: 1.09 | G7: 0.1452583905 | I7: Gfic | J7: 0 | K7: 0 | L7: 0 | M7: 0 | N7: 0
B8: - | C8: 0.22 | D8: 0.19 | E8: 0.25 | F8: 0.22 | G8: 0.03 | I8: - | J8: 1.6 | K8: 1.82 | L8: 1.3 | M8: 1.573333333 | N8: 0.261023626

Sheet Fig. 6b
B2: Strains | C2: X1 | E2: X2 | G2: X3 | I2: X4
B3: Time (h) | C3: Mean value | D3: Error bar | E3: Mean value | F3: Error bar | G3: Mean value | H3: Error bar | I3: Mean value | J3: Error bar
B4: 0 | C4: 0.02 | D4: 0.00424 | E4: 0.034 | F4: 0.00177 | G4: 0.03733 | H4: 0.00453 | I4: 0.0168 | J4: 0.01952
B5: 0.5 | C5: 0.0245 | D5: 0.001 | E5: 0.0331 | F5: 0.004 | G5: 0.013 | H5: 0.001 | I5: 0.021 | J5: 0.012
B6: 1 | C6: 0.03132 | D6: 0.00509 | E6: 0.04065 | F6: 0.01358 | G6: 0.0275 | H6: 0.01117 | I6: 0.0204 | J6: 0.01549
B7: 1.5 | C7: 0.055 | D7: 0.001 | E7: 0.044 | F7: 0.0054 | G7: 0.0494 | H7: 0 | I7: 0.0221 | J7: 0.001
B8: 2 | C8: 0.09645 | D8: 0.01117 | E8: 0.05155 | F8: 0.00177 | G8: 0.09529 | H8: 0.00933 | I8: 0.0371 | J8: 0.01358
B9: 2.5 | C9: 0.145 | D9: 0.015 | E9: 0.04 | F9: 0.0015 | G9: 0.124 | H9: 0.015 | I9: 0.041 | J9: 0.001
B10: 3 | C10: 0.2288 | D10: 0.00898 | E10: 0.06025 | F10: 0.02305 | G10: 0.1706 | H10: 0.02227 | I10: 0.045 | J10: 0.01704
B11: 3.5 | C11: 0.3678 | D11: 0.004 | E11: 0.0645 | F11: 0.023 | G11: 0.219 | H11: 0.015 | I11: 0.054 | J11: 0.015
B12: 4 | C12: 0.55532 | D12: 0.00686 | E12: 0.0629 | F12: 0.00134 | G12: 0.29067 | H12: 0.01273 | I12: 0.058 | J12: 0.01336
B13: 4.5 | C13: 0.784 | D13: 0.004 | E13: 0.0741 | F13: 0.0014 | G13: 0.365 | H13: 0.016 | I13: 0.064 | J13: 0.015
B14: 5 | C14: 0.9882 | D14: 0.00608 | E14: 0.0894 | F14: 0.02312 | G14: 0.48275 | H14: 0.01831 | I14: 0.08295 | J14: 0.02171
B15: 5.5 | C15: 1.114 | D15: 0.014 | E15: 0.0745 | F15: 0.015 | G15: 0.586 | H15: 0.004 | I15: 0.088 | J15: 0.0164
B16: 6 | C16: 1.20503 | D16: 0.02778 | E16: 0.0861 | F16: 0.0053 | G16: 0.75328 | H16: 0.00884 | I16: 0.0964 | J16: 0.00891
B17: 6.5 | C17: 1.2414 | D17: 0.031 | E17: 0.096 | F17: 0.0314 | G17: 0.864 | H17: 0.016 | I17: 0.099 | J17: 0.0012
B18: 7 | C18: 1.27078 | D18: 0.03217 | E18: 0.11455 | F18: 0.03125 | G18: 0.97533 | H18: 0.01803 | I18: 0.111 | J18: 0.01485
B19: 7.5 | C19: 1.2845 | D19: 0.035 | E19: 0.119 | F19: 0.0014 | G19: 1.061 | H19: 0.016 | I19: 0.1224 | J19: 0.015
B20: 8 | C20: 1.30865 | D20: 0.0462 | E20: 0.12305 | F20: 0.01061 | G20: 1.12853 | H20: 0.01223 | I20: 0.13135 | J20: 0.00841
B21: 8.5 | C21: 1.311 | D21: 0.047 | E21: 0.1239 | F21: 0.001 | G21: 1.179 | H21: 0.0296 | I21: 0.146 | J21: 0.001
B22: 9 | C22: 1.3202 | D22: 0.05202 | E22: 0.13265 | F22: 0.0186 | G22: 1.19345 | H22: 0.04723 | I22: 0.1616 | J22: 0.02051

Sheet Fig. 6c
B2: Time (h) | C2: Induction OD
C3: Parallel 1 | D3: Parallel 2 | E3: Parallel 3 | F3: Mean value | G3: Error bar
B4: 4 | C4: 0.41 | D4: 0.37 | E4: 0.39 | F4: =AVERAGE(C4:E4) -> 0.39 | G4: =STDEVA(C4:E4) -> 0.02
B5: 6 | C5: 0.79 | D5: 0.79 | E5: 0.76 | F5: =AVERAGE(C5:E5) -> 0.78 | G5: =STDEVA(C5:E5) -> 0.01732050808
B6: 8 | C6: 1.22 | D6: 1.17 | E6: 1.2 | F6: 1.196666667 | G6: 0.02516611478
B7: 10 | C7: 1.54 | D7: 1.42 | E7: 1.52 | F7: 1.493333333 | G7: 0.06429100507
B10: Time (h) | C10: Final OD
C11: Parallel 1 | D11: Parallel 2 | E11: Parallel 3 | F11: Mean value | G11: Error bar
B12: 4 | C12: 2.78 | D12: 2.3 | E12: 2.5 | F12: =AVERAGE(C12:E12) -> 2.526666667 | G12: =STDEVA(C12:E12) -> 0.2411085509
B13: 6 | C13: 5.1 | D13: 4.98 | E13: 4.82 | F13: =AVERAGE(C13:E13) -> 4.966666667 | G13: =STDEVA(C13:E13) -> 0.1404753834
B14: 8 | C14: 5.15 | D14: 5.25 | E14: 5.09 | F14: 5.163333333 | G14: 0.08082903769
B15: 10 | C15: 5.1 | D15: 5.4 | E15: 5.25 | F15: 5.25 | G15: 0.15
B18: Time (h) | C18: Titer (g/L)
C19: Parallel 1 | D19: Parallel 2 | E19: Parallel 3 | F19: Mean value | G19: Error bar
B20: 4 | C20: 2.99 | D20: 2.82 | E20: 2.92 | F20: =AVERAGE(C20:E20) -> 2.91 | G20: =STDEVA(C20:E20) -> 0.08544003745
B21: 6 | C21: 4.1 | D21: 4.4 | E21: 4.25 | F21: =AVERAGE(C21:E21) -> 4.25 | G21: =STDEVA(C21:E21) -> 0.15
B22: 8 | C22: 4.04 | D22: 4.25 | E22: 4.15 | F22: 4.146666667 | G22: 0.105039675
B23: 10 | C23: 4.07 | D23: 3.81 | E23: 3.94 | F23: 3.94 | G23: 0.13

Sheet Fig. 6d
B2: Glucose vs Xylose | C2: D-xylonate of strain X4 (g/L) | G2: D-xylonate of control strain (g/L)
C3: Parallel 1 | D3: Parallel 2 | E3: Mean value | F3: Error bar | G3: Parallel 1 | H3: Parallel 2 | I3: Mean value | J3: Error bar
B4: 0.5 | C4: 4.185 | D4: 3.95262 | E4: =AVERAGE(C4:D4) -> 4.06881 | F4: =AVEDEV(C4:D4) -> 0.11619 | G4: 4.54776 | H4: 4.47524 | I4: =AVERAGE(G4:H4) -> 4.5115 | J4: =AVEDEV(G4:H4) -> 0.03626
B5: 1 | C5: 4.06325 | D5: 3.86229 | E5: =AVERAGE(C5:D5) -> 3.96277 | F5: =AVEDEV(C5:D5) -> 0.10048 | G5: 3.23602 | H5: 2.99398 | I5: =AVERAGE(G5:H5) -> 3.115 | J5: =AVEDEV(G5:H5) -> 0.12102
B6: 1.5 | C6: 3.99191 | D6: 3.81793 | E6: 3.90492 | F6: 0.08699 | G6: 2.61114 | H6: 2.30246 | I6: 2.4568 | J6: 0.15434
B7: 2 | C7: 4.36991 | D7: 4.13201 | E7: 4.25096 | F7: 0.11895 | G7: 2.48249 | H7: 2.25711 | I7: 2.3698 | J7: 0.11269

Sheet Fig. 7b
B2: Xylonate (g/L) | H2: Xylose consumption (g/L)
B3: Time (h) | C3: Strain XN | E3: Strain XO | H3: Time (h) | I3: Strain XN | K3: Strain XO
C4: Mean value | D4: Error bar | E4: Mean value | F4: Error bar | I4: Mean value | J4: Error bar | K4: Mean value | L4: Error bar
B5: 0 | C5: 0 | D5: 0 | E5: 0 | F5: 0 | H5: 0 | I5: 18.21784 | J5: 0.3182 | K5: 18.33288 | L5: 0.4183
B6: 12 | C6: 0.12135 | D6: 0.08481 | E6: 0.40278 | F6: 0.17112 | H6: 12 | I6: 18.05325 | J6: 0.25158 | K6: 17.88533 | L6: 0.43635
B7: 24 | C7: 1.8022 | D7: 0.14919 | E7: 1.47497 | F7: 0.08375 | H7: 24 | I7: 16.54288 | J7: 0.19799 | K7: 16.92358 | L7: 0.63158
B8: 36 | C8: 2.65043 | D8: 0.17509 | E8: 3.2008 | F8: 0.00596 | H8: 36 | I8: 15.79674 | J8: 0.17904 | K8: 14.99674 | L8: 0.68064
B9: 48 | C9: 3.20529 | D9: 0.13903 | E9: 4.88791 | F9: 0.10629 | H9: 48 | I9: 15.17496 | J9: 1.05613 | K9: 13.17496 | L9: 0.3992
B10: 60 | C10: 3.11039 | D10: 0.23705 | E10: 5.72378 | F10: 0.54923 | H10: 60 | I10: 14.95051 | J10: 0.35763 | K10: 12.25051 | L10: 0.111
B11: 72 | C11: 3.40376 | D11: 0.39192 | E11: 6.88178 | F11: 0.35674 | H11: 72 | I11: 14.71627 | J11: 0.18851 | K11: 11.71627 | L11: 0.35963

Sheet Fig. 7c
B2: Strain | C2: XP | E2: XO | G2: XN
C3: In vivo Ph | D3: In vitro ph | E3: In vivo Ph | F3: In vitro ph | G3: In vivo Ph | H3: In vitro ph
B4: Parallel 1 | C4: 6.84406 | D4: 6.13 | E4: 5.99692 | F4: 4.07 | G4: 3.55932 | H4: 4.08
B5: Parallel 2 | C5: 6.85541 | D5: 6.25 | E5: 6.00411 | F5: 4.06 | G5: 3.57339 | H5: 4.09
B6: Parallel 3 | C6: 6.82388 | D6: 6.36 | E6: 6.03778 | F6: 4.04 | G6: 3.6412 | H6: 4.11

Sheet Fig. 7d
C1: XP-brightfield | H1: XP-pHluorin | M1: XP-PI | R1: XP-merge
C15: XO-brightfield | H15: XO-pHluorin | M15: XO-PI | R15: XO-merge
C29: XN-brightfield | H29: XN-pHluorin | M29: XN-PI | R29: XN-merge

Sheet Fig. 7e
B2: Time(h) | C2: Glucose (g/L) | G2: OD600 | K2: D-Xylose (g/L) | O2: Acetate (g/L) | S2: D-xylonate (g/L)
C3: Parallel 1 | D3: Parallel 2 | E3: Mean value | F3: Error bar | G3: Parallel 1 | H3: Parallel 2 | I3: Mean value | J3: Error bar | K3: Parallel 1 | L3: Parallel 2 | M3: Mean value | N3: Error bar | O3: Parallel 1 | P3: Parallel 2 | Q3: Mean value | R3: Error bar | S3: Parallel 1 | T3: Parallel 2 | U3: Mean value | V3: Error bar
B4: 0 | C4: 0 | D4: 0 | E4: =AVERAGE(C4:D4) -> 0 | F4: =AVEDEV(C4:D4) -> 0 | G4: 0.45 | H4: 0.45 | I4: =AVERAGE(G4:H4) -> 0.45 | J4: =AVEDEV(G4:H4) -> 0 | K4: 0 | L4: 0 | M4: =AVERAGE(K4:L4) -> 0 | N4: =AVEDEV(K4:L4) -> 0 | O4: 0 | P4: 0 | Q4: =AVERAGE(O4:P4) -> 0 | R4: =AVEDEV(O4:P4) -> 0 | S4: 0 | T4: 0 | U4: =AVERAGE(S4:T4) -> 0 | V4: =AVEDEV(S4:T4) -> 0
B5: 2 | C5: 0 | D5: 0 | E5: 0 | F5: 0 | G5: 3.16 | H5: 2.79 | I5: 2.975 | J5: 0.185 | K5: 0 | L5: 0 | M5: 0 | N5: 0 | O5: 0 | P5: 0 | Q5: 0 | R5: 0 | S5: 0 | T5: 0 | U5: 0 | V5: 0
B6: 4 | C6: 0 | D6: 0 | E6: 0 | F6: 0 | G6: 14.89 | H6: 14.24 | I6: 14.565 | J6: 0.325 | K6: 70 | L6: 70 | M6: 70 | N6: 0 | O6: 0 | P6: 0 | Q6: 0 | R6: 0 | S6: 0 | T6: 0 | U6: 0 | V6: 0
B7: 6 | C7: 1.71 | D7: 0.48 | E7: 1.095 | F7: 0.615 | G7: 23.79 | H7: 21.95 | I7: 22.87 | J7: 0.92 | K7: 45.91 | L7: 42.1 | M7: 44.005 | N7: 1.905 | O7: 0.75 | P7: 1.53 | Q7: 1.14 | R7: 0.39 | S7: 22.83 | T7: 21.45 | U7: 22.14 | V7: 0.69
B8: 8 | C8: 2.19 | D8: 0.86 | E8: 1.525 | F8: 0.665 | G8: 25.26 | H8: 25.61 | I8: 25.435 | J8: 0.175 | K8: 13.24 | L8: 10.79 | M8: 12.015 | N8: 1.225 | O8: 3.3 | P8: 4.43 | Q8: 3.865 | R8: 0.565 | S8: 51.2 | T8: 49.24 | U8: 50.22 | V8: 0.98
B9: 8.01 | C9: 2.19 | D9: 0.86 | E9: 1.525 | F9: 0.665 | G9: 25.26 | H9: 25.11 | I9: 25.185 | J9: 0.075 | K9: 83.24 | L9: 80.79 | M9: 82.015 | N9: 1.225 | O9: 3.13 | P9: 4.13 | Q9: 3.63 | R9: 0.5 | S9: 51.29 | T9: 49.24 | U9: 50.265 | V9: 1.025
B10: 10 | C10: 1.15 | D10: 1.12 | E10: 1.135 | F10: 0.015 | G10: 26.08 | H10: 25.47 | I10: 25.775 | J10: 0.305 | K10: 55.15 | L10: 52.84 | M10: 53.995 | N10: 1.155 | O10: 4.95 | P10: 6.39 | Q10: 5.67 | R10: 0.72 | S10: 80.58 | T10: 79.62 | U10: 80.1 | V10: 0.48
B11: 12 | C11: 2.03 | D11: 0.26 | E11: 1.145 | F11: 0.885 | G11: 26.29 | H11: 26.02 | I11: 26.155 | J11: 0.135 | K11: 47.13 | L11: 44.86 | M11: 45.995 | N11: 1.135 | O11: 6.41 | P11: 9.11 | Q11: 7.76 | R11: 1.35 | S11: 88.87 | T11: 88.41 | U11: 88.64 | V11: 0.23
B12: 14 | C12: 1.09 | D12: 0 | E12: 0.545 | F12: 0.545 | G12: 29.09 | H12: 27.25 | I12: 28.17 | J12: 0.92 | K12: 27.21 | L12: 24.78 | M12: 25.995 | N12: 1.215 | O12: 7 | P12: 9.56 | Q12: 8.28 | R12: 1.28 | S12: 110.75 | T12: 108.43 | U12: 109.59 | V12: 1.16
B13: 14.01 | C13: 1.09 | D13: 0 | E13: 0.545 | F13: 0.545 | G13: 29.09 | H13: 27.25 | I13: 28.17 | J13: 0.92 | K13: 97.21 | L13: 94.78 | M13: 95.995 | N13: 1.215 | O13: 7 | P13: 9.56 | Q13: 8.28 | R13: 1.28 | S13: 110.75 | T13: 108.43 | U13: 109.59 | V13: 1.16
B14: 23 | C14: 1.12 | D14: 0 | E14: 0.56 | F14: 0.56 | G14: 29.7 | H14: 27.76 | I14: 28.73 | J14: 0.97 | K14: 23.38 | L14: 20.61 | M14: 21.995 | N14: 1.385 | O14: 13.82 | P14: 17.18 | Q14: 15.5 | R14: 1.68 | S14: 180.61 | T14: 177.43 | U14: 179.02 | V14: 1.59
B15: 24 | C15: 0.67 | D15: 0.29 | E15: 0.48 | F15: 0.19 | G15: 27.72 | H15: 25.14 | I15: 26.43 | J15: 1.29 | K15: 14.05 | L15: 11.94 | M15: 12.995 | N15: 1.055 | O15: 12.79 | P15: 16.58 | Q15: 14.685 | R15: 1.895 | S15: 193.06 | T15: 189.12 | U15: 191.09 | V15: 1.97
B16: 28 | C16: 0.87 | D16: 0 | E16: 0.435 | F16: 0.435 | G16: 24.42 | H16: 20.44 | I16: 22.43 | J16: 1.99 | K16: 0.81 | L16: 0 | M16: 0.405 | N16: 0.405 | O16: 11.34 | P16: 12.9 | Q16: 12.12 | R16: 0.78 | S16: 199.57 | T16: 199.3 | U16: 199.435 | V16: 0.135

Sheet Suppl Fig. 1b
B2: Time (h) | C2: RBS
C3: B0029 | E3: B0031 | G3: B0033 | I3: B0034 | K3: B0064
C4: Mean value | D4: Error bar | E4: Mean value | F4: Error bar | G4: Mean value | H4: Error bar | I4: Mean value | J4: Error bar | K4: Mean value | L4: Error bar
B5: 0 | C5: 4.56114 | D5: 0 | E5: 1.10034 | F5: 0 | G5: 1.27625 | H5: 0 | I5: 15.28978 | J5: 0 | K5: 4.1646 | L5: 0
B6: 1 | C6: 632.07862 | D6: 33.64668 | E6: 54.09139 | F6: 5.974 | G6: 39.8153 | H6: 3.8399 | I6: 1226.77555 | J6: 113.92395 | K6: 676.68253 | L6: 77.41017
B7: 3 | C7: 4565.78641 | D7: 245.07136 | E7: 294.96003 | F7: 40.54604 | G7: 180.30371 | H7: 30.48017 | I7: 7170.94884 | J7: 89.82424 | K7: 3399.42695 | L7: 40.75519
B8: 4 | C8: 6212.98137 | D8: 260.96993 | E8: 382.83516 | F8: 30.30441 | G8: 238.15166 | H8: 7.64006 | I8: 10253.25673 | J8: 93.77974 | K8: 4380.48131 | L8: 102.15178
B9: 5 | C9: 7278.51826 | D9: 390.02658 | E9: 470.54497 | F9: 18.0171 | G9: 321.8412 | H9: 10.60546 | I9: 12714.0027 | J9: 58.97402 | K9: 4810.08962 | L9: 158.83701
B10: 6 | C10: 8582.18841 | D10: 340.09534 | E10: 533.15335 | F10: 21.30649 | G10: 354.07716 | H10: 14.1576 | I10: 14336.56297 | J10: 408.82522 | K10: 4976.6216 | L10: 175.3932
B11: 7 | C11: 9262.14283 | D11: 615.65308 | E11: 646.17171 | F11: 23.25972 | G11: 400.90526 | H11: 33.93668 | I11: 15334.12768 | J11: 602.55217 | K11: 5104.14966 | L11: 346.33718
B12: 9 | C12: 9856.55686 | D12: 529.29733 | E12: 760.089 | F12: 40.32478 | G12: 465.1235 | H12: 38.19473 | I12: 15855.143 | J12: 992.37613 | K12: 5073.91956 | L12: 436.81037
B13: 12 | C13: 10151.1955 | D13: 496.64861 | E13: 865.52147 | F13: 26.0939 | G13: 513.55468 | H13: 19.27008 | I13: 16285.973 | J13: 804.76973 | K13: 5291.37304 | L13: 552.68176

Sheet Suppl Fig. 2a
B2: ATC concentration (ng/mL) | C2: Log(ATC) | D2: mCherry | F2: mVenus
D3: Mean value | E3: Error bar | F3: Mean value | G3: Error bar
B4: 200 | C4: 2.30103 | D4: 98.29405 | E4: 0.62763 | F4: 3.6782 | G4: 1.47933
B5: 100 | C5: 2 | D5: 100.00003 | E5: 1.012 | F5: 12.87512 | G5: 3.11785
B6: 50 | C6: 1.69897 | D6: 97.45768 | E6: 2.41916 | F6: 31.50011 | G6: 2.23312
B7: 20 | C7: 1.30103 | D7: 98.03088 | E7: 1.61727 | F7: 77.06116 | G7: 2.11154
B8: 10 | C8: 1 | D8: 98.7845 | E8: 1.42213 | F8: 87.47129 | G8: 2.92623
B9: 0.01 | C9: -2 | D9: 99.18537 | E9: 2.2236 | F9: 100 | G9: 0.22776
C12: Nonlinear fitting
C13: X1 | D13: Y1
C14: -2 | D14: 99.98591
C15: -1.99569 | D15: 99.98591
C16: -1.99139 | D16: 99.98591
C17: -1.98708 | D17: 99.98591
C18: -1.98278 | D18: 99.98591
C19: -1.97847 | D19: 99.98591
C20: -1.97417 | D20: 99.98591
C21: -1.96986 | D21: 99.98591
C22: -1.96556 | D22: 99.98591
C23: -1.96125 | D23: 99.98591
C24: -1.95695 | D24: 99.98591
C25: -1.95264 | D25: 99.98591
C26: -1.94834 | D26: 99.98591
C27: -1.94403 | D27: 99.98591
C28: -1.93973 | D28: 99.98591
C29: -1.93542 | D29: 99.98591
C30: -1.93111 | D30: 99.9859
C31: -1.92681 | D31: 99.9859
C32: -1.9225 | D32: 99.9859
C33: -1.9182 | D33: 99.9859
C34: -1.91389 | D34: 99.9859
C35: -1.90959 | D35: 99.9859
C36: -1.90528 | D36: 99.9859
C37: -1.90098 | D37: 99.9859
C38: -1.89667 | D38: 99.9859
C39: -1.89237 | D39: 99.9859
C40: -1.88806 | D40: 99.9859
C41: -1.88376 | D41: 99.9859
C42: -1.87945 | D42: 99.9859
C43: -1.87515 | D43: 99.9859
C44: -1.87084 | D44: 99.9859
C45: -1.86653 | D45: 99.9859
C46: -1.86223 | D46: 99.9859
C47: -1.85792 | D47: 99.9859
C48: -1.85362 | D48: 99.9859
C49: -1.84931 | D49: 99.9859
C50: -1.84501 | D50: 99.9859
C51: -1.8407 | D51: 99.9859
C52: -1.8364 | D52: 99.9859
C53: -1.83209 | D53: 99.9859
C54: -1.82779 | D54: 99.9859
C55: -1.82348 | D55: 99.9859
C56: -1.81918 | D56: 99.9859
C57: -1.81487 | D57: 99.9859
C58: -1.81057 | D58: 99.9859
C59: -1.80626 | D59: 99.9859
C60: -1.80195 | D60: 99.9859
C61: -1.79765 | D61: 99.9859
C62: -1.79334 | D62: 99.9859
C63: -1.78904 | D63: 99.9859
C64: -1.78473 | D64: 99.98589
C65: -1.78043 | D65: 99.98589
C66: -1.77612 | D66: 99.98589
C67: -1.77182 | D67: 99.98589
C68: -1.76751 | D68: 99.98589
C69: -1.76321 | D69: 99.98589
C70: -1.7589 | D70: 99.98589
C71: -1.7546 | D71: 99.98589
C72: -1.75029 | D72: 99.98589
C73: -1.74599 | D73: 99.98589
C74: -1.74168 | D74: 99.98589
C75: -1.73737 | D75: 99.98589
C76: -1.73307 | D76: 99.98589
C77: -1.72876 | D77: 99.98589
C78: -1.72446 | D78: 99.98589
C79: -1.72015 | D79: 99.98589
C80: -1.71585 | D80: 99.98589
C81: -1.71154 | D81: 99.98589
C82: -1.70724 | D82: 99.98589
C83: -1.70293 | D83: 99.98589
C84: -1.69863 | D84: 99.98588
C85: -1.69432 | D85: 99.98588
C86: -1.69002 | D86: 99.98588
C87: -1.68571 | D87: 99.98588
C88: -1.68141 | D88: 99.98588
C89: -1.6771 | D89: 99.98588
C90: -1.67279 | D90: 99.98588
C91: -1.66849 | D91: 99.98588
C92: -1.66418 | D92: 99.98588
C93: -1.65988 | D93: 99.98588
C94: -1.65557 | D94: 99.98588
C95: -1.65127 | D95: 99.98588
C96: -1.64696 | D96: 99.98588
C97: -1.64266 | D97: 99.98588
C98: -1.63835 | D98: 99.98587
C99: -1.63405 | D99: 99.98587
C100: -1.62974 | D100: 99.98587
C101: -1.62544 | D101: 99.98587
C102: -1.62113 | D102: 99.98587
C103: -1.61683 | D103: 99.98587
C104: -1.61252 | D104: 99.98587
C105: -1.60821 | D105: 99.98587
C106: -1.60391 | D106: 99.98587
C107: -1.5996 | D107: 99.98587
C108: -1.5953 | D108: 99.98587
C109: -1.59099 | D109: 99.98586
C110: -1.58669 | D110: 99.98586
C111: -1.58238 | D111: 99.98586
C112: -1.57808 | D112: 99.98586
C113: -1.57377 | D113: 99.98586
C114: -1.56947 | D114: 99.98586
C115: -1.56516 | D115: 99.98586
C116: -1.56086 | D116: 99.98586
C117: -1.55655 | D117: 99.98586
C118: -1.55225 | D118: 99.98586
C119: -1.54794 | D119: 99.98585
C120: -1.54363 | D120: 99.98585
C121: -1.53933 | D121: 99.98585
C122: -1.53502 | D122: 99.98585
C123: -1.53072 | D123: 99.98585
C124: -1.52641 | D124: 99.98585
C125: -1.52211 | D125: 99.98585
C126: -1.5178 | D126: 99.98584
C127: -1.5135 | D127: 99.98584
C128: -1.50919 | D128: 99.98584
C129: -1.50489 | D129: 99.98584
C130: -1.50058 | D130: 99.98584
C131: -1.49628 | D131: 99.98584
C132: -1.49197 | D132: 99.98584
C133: -1.48767 | D133: 99.98583
C134: -1.48336 | D134: 99.98583
C135: -1.47905 | D135: 99.98583
C136: -1.47475 | D136: 99.98583
C137: -1.47044 | D137: 99.98583
C138: -1.46614 | D138: 99.98583
C139: -1.46183 | D139: 99.98582
C140: -1.45753 | D140: 99.98582
C141: -1.45322 | D141: 99.98582
C142: -1.44892 | D142: 99.98582
C143: -1.44461 | D143: 99.98582
C144: -1.44031 | D144: 99.98581
C145: -1.436 | D145: 99.98581
C146: -1.4317 | D146: 99.98581
C147: -1.42739 | D147: 99.98581
C148: -1.42309 | D148: 99.98581
C149: -1.41878 | D149: 99.9858
C150: -1.41447 | D150: 99.9858
C151: -1.41017 | D151: 99.9858
C152: -1.40586 | D152: 99.9858
C153: -1.40156 | D153: 99.98579
C154: -1.39725 | D154: 99.98579
C155: -1.39295 | D155: 99.98579
C156: -1.38864 | D156: 99.98579
C157: -1.38434 | D157: 99.98578
C158: -1.38003 | D158: 99.98578
C159: -1.37573 | D159: 99.98578
C160: -1.37142 | D160: 99.98578
C161: -1.36712 | D161: 99.98577
C162: -1.36281 | D162: 99.98577
C163: -1.35851 | D163: 99.98577
C164: -1.3542 | D164: 99.98576
C165: -1.34989 | D165: 99.98576
C166: -1.34559 | D166: 99.98576
C167: -1.34128 | D167: 99.98576
C168: -1.33698 | D168: 99.98575
C169: -1.33267 | D169: 99.98575
C170: -1.32837 | D170: 99.98575
C171: -1.32406 | D171: 99.98574
C172: -1.31976 | D172: 99.98574
C173: -1.31545 | D173: 99.98573
C174: -1.31115 | D174: 99.98573
C175: -1.30684 | D175: 99.98573
C176: -1.30254 | D176: 99.98572
C177: -1.29823 | D177: 99.98572
C178: -1.29393 | D178: 99.98572
C179: -1.28962 | D179: 99.98571
C180: -1.28531 | D180: 99.98571
C181: -1.28101 | D181: 99.9857
C182: -1.2767 | D182: 99.9857
C183: -1.2724 | D183: 99.98569
C184: -1.26809 | D184: 99.98569
C185: -1.26379 | D185: 99.98569
C186: -1.25948 | D186: 99.98568
C187: -1.25518 | D187: 99.98568
C188: -1.25087 | D188: 99.98567
C189: -1.24657 | D189: 99.98567
C190: -1.24226 | D190: 99.98566
C191: -1.23796 | D191: 99.98566
C192: -1.23365 | D192: 99.98565
C193: -1.22934 | D193: 99.98565
C194: -1.22504 | D194: 99.98564
C195: -1.22073 | D195: 99.98564
C196: -1.21643 | D196: 99.98563
C197: -1.21212 | D197: 99.98562
C198: -1.20782 | D198: 99.98562
C199: -1.20351 | D199: 99.98561
C200: -1.19921 | D200: 99.98561
C201: -1.1949 | D201: 99.9856
C202: -1.1906 | D202: 99.98559
C203: -1.18629 | D203: 99.98559
... 810 more rows

Sheet Suppl Fig. 2b
B2: ATC concentration (ng/mL) | C2: Log(ATC) | D2: GFP | F2: mCherry
D3: Mean value | E3: Error bar | F3: Mean value | G3: Error bar
B4: 200 | C4: 2.30103 | D4: 100 | E4: 3.62052 | F4: 2.33637 | G4: 0.04713
B5: 100 | C5: 2 | D5: 60.79205 | E5: 2.76561 | F5: 7.01432 | G5: 2.45907
B6: 50 | C6: 1.69897 | D6: 29.18376 | E6: 1.41294 | F6: 5.67118 | G6: 1.51242
B7: 20 | C7: 1.30103 | D7: 9.79881 | E7: 2.17156 | F7: 5.77697 | G7: 0.33786
B8: 10 | C8: 1 | D8: 5.63175 | E8: 1.85534 | F8: 4.41717 | G8: 1.29118
B9: 0.01 | C9: -2 | D9: 1.97178 | E9: 1.57653 | F9: 5.26046 | G9: 1.21212
C12: Nonlinear fitting
C13: X1 | D13: Y1
C14: -2 | D14: 2.22739
C15: -1.99569 | D15: 2.22739
C16: -1.99139 | D16: 2.22739
C17: -1.98708 | D17: 2.22739
C18: -1.98278 | D18: 2.22739
C19: -1.97847 | D19: 2.22739
C20: -1.97417 | D20: 2.22739
C21: -1.96986 | D21: 2.2274
C22: -1.96556 | D22: 2.2274
C23: -1.96125 | D23: 2.2274
C24: -1.95695 | D24: 2.2274
C25: -1.95264 | D25: 2.2274
C26: -1.94834 | D26: 2.2274
C27: -1.94403 | D27: 2.2274
C28: -1.93973 | D28: 2.22741
C29: -1.93542 | D29: 2.22741
C30: -1.93111 | D30: 2.22741
C31: -1.92681 | D31: 2.22741
C32: -1.9225 | D32: 2.22741
C33: -1.9182 | D33: 2.22741
C34: -1.91389 | D34: 2.22742
C35: -1.90959 | D35: 2.22742
C36: -1.90528 | D36: 2.22742
C37: -1.90098 | D37: 2.22742
C38: -1.89667 | D38: 2.22742
C39: -1.89237 | D39: 2.22742
C40: -1.88806 | D40: 2.22743
C41: -1.88376 | D41: 2.22743
C42: -1.87945 | D42: 2.22743
C43: -1.87515 | D43: 2.22743
C44: -1.87084 | D44: 2.22743
C45: -1.86653 | D45: 2.22744
C46: -1.86223 | D46: 2.22744
C47: -1.85792 | D47: 2.22744
C48: -1.85362 | D48: 2.22744
C49: -1.84931 | D49: 2.22744
C50: -1.84501 | D50: 2.22745
C51: -1.8407 | D51: 2.22745
C52: -1.8364 | D52: 2.22745
C53: -1.83209 | D53: 2.22745
C54: -1.82779 | D54: 2.22745
C55: -1.82348 | D55: 2.22746
C56: -1.81918 | D56: 2.22746
C57: -1.81487 | D57: 2.22746
C58: -1.81057 | D58: 2.22746
C59: -1.80626 | D59: 2.22747
C60: -1.80195 | D60: 2.22747
C61: -1.79765 | D61: 2.22747
C62: -1.79334 | D62: 2.22747
C63: -1.78904 | D63: 2.22748
C64: -1.78473 | D64: 2.22748
C65: -1.78043 | D65: 2.22748
C66: -1.77612 | D66: 2.22748
C67: -1.77182 | D67: 2.22749
C68: -1.76751 | D68: 2.22749
C69: -1.76321 | D69: 2.22749
C70: -1.7589 | D70: 2.2275
C71: -1.7546 | D71: 2.2275
C72: -1.75029 | D72: 2.2275
C73: -1.74599 | D73: 2.2275
C74: -1.74168 | D74: 2.22751
C75: -1.73737 | D75: 2.22751
C76: -1.73307 | D76: 2.22751
C77: -1.72876 | D77: 2.22752
C78: -1.72446 | D78: 2.22752
C79: -1.72015 | D79: 2.22752
C80: -1.71585 | D80: 2.22753
C81: -1.71154 | D81: 2.22753
C82: -1.70724 | D82: 2.22753
C83: -1.70293 | D83: 2.22754
C84: -1.69863 | D84: 2.22754
C85: -1.69432 | D85: 2.22754
C86: -1.69002 | D86: 2.22755
C87: -1.68571 | D87: 2.22755
C88: -1.68141 | D88: 2.22755
C89: -1.6771 | D89: 2.22756
C90: -1.67279 | D90: 2.22756
C91: -1.66849 | D91: 2.22757
C92: -1.66418 | D92: 2.22757
C93: -1.65988 | D93: 2.22757
C94: -1.65557 | D94: 2.22758
C95: -1.65127 | D95: 2.22758
C96: -1.64696 | D96: 2.22759
C97: -1.64266 | D97: 2.22759
C98: -1.63835 | D98: 2.22759
C99: -1.63405 | D99: 2.2276
C100: -1.62974 | D100: 2.2276
C101: -1.62544 | D101: 2.22761
C102: -1.62113 | D102: 2.22761
C103: -1.61683 | D103: 2.22762
C104: -1.61252 | D104: 2.22762
C105: -1.60821 | D105: 2.22763
C106: -1.60391 | D106: 2.22763
C107: -1.5996 | D107: 2.22764
C108: -1.5953 | D108: 2.22764
C109: -1.59099 | D109: 2.22765
C110: -1.58669 | D110: 2.22765
C111: -1.58238 | D111: 2.22766
C112: -1.57808 | D112: 2.22766
C113: -1.57377 | D113: 2.22767
C114: -1.56947 | D114: 2.22767
C115: -1.56516 | D115: 2.22768
C116: -1.56086 | D116: 2.22769
C117: -1.55655 | D117: 2.22769
C118: -1.55225 | D118: 2.2277
C119: -1.54794 | D119: 2.2277
C120: -1.54363 | D120: 2.22771
C121: -1.53933 | D121: 2.22771
C122: -1.53502 | D122: 2.22772
C123: -1.53072 | D123: 2.22773
C124: -1.52641 | D124: 2.22773
C125: -1.52211 | D125: 2.22774
C126: -1.5178 | D126: 2.22775
C127: -1.5135 | D127: 2.22775
C128: -1.50919 | D128: 2.22776
C129: -1.50489 | D129: 2.22777
C130: -1.50058 | D130: 2.22777
C131: -1.49628 | D131: 2.22778
C132: -1.49197 | D132: 2.22779
C133: -1.48767 | D133: 2.2278
C134: -1.48336 | D134: 2.2278
C135: -1.47905 | D135: 2.22781
C136: -1.47475 | D136: 2.22782
C137: -1.47044 | D137: 2.22783
C138: -1.46614 | D138: 2.22783
C139: -1.46183 | D139: 2.22784
C140: -1.45753 | D140: 2.22785
C141: -1.45322 | D141: 2.22786
C142: -1.44892 | D142: 2.22787
C143: -1.44461 | D143: 2.22788
C144: -1.44031 | D144: 2.22788
C145: -1.436 | D145: 2.22789
C146: -1.4317 | D146: 2.2279
C147: -1.42739 | D147: 2.22791
C148: -1.42309 | D148: 2.22792
C149: -1.41878 | D149: 2.22793
C150: -1.41447 | D150: 2.22794
C151: -1.41017 | D151: 2.22795
C152: -1.40586 | D152: 2.22796
C153: -1.40156 | D153: 2.22797
C154: -1.39725 | D154: 2.22798
C155: -1.39295 | D155: 2.22799
C156: -1.38864 | D156: 2.228
C157: -1.38434 | D157: 2.22801
C158: -1.38003 | D158: 2.22802
C159: -1.37573 | D159: 2.22803
C160: -1.37142 | D160: 2.22804
C161: -1.36712 | D161: 2.22805
C162: -1.36281 | D162: 2.22806
C163: -1.35851 | D163: 2.22808
C164: -1.3542 | D164: 2.22809
C165: -1.34989 | D165: 2.2281
C166: -1.34559 | D166: 2.22811
C167: -1.34128 | D167: 2.22812
C168: -1.33698 | D168: 2.22814
C169: -1.33267 | D169: 2.22815
C170: -1.32837 | D170: 2.22816
C171: -1.32406 | D171: 2.22817
C172: -1.31976 | D172: 2.22819
C173: -1.31545 | D173: 2.2282
C174: -1.31115 | D174: 2.22821
C175: -1.30684 | D175: 2.22823
C176: -1.30254 | D176: 2.22824
C177: -1.29823 | D177: 2.22826
C178: -1.29393 | D178: 2.22827
C179: -1.28962 | D179: 2.22829
C180: -1.28531 | D180: 2.2283
C181: -1.28101 | D181: 2.22832
C182: -1.2767 | D182: 2.22833
C183: -1.2724 | D183: 2.22835
C184: -1.26809 | D184: 2.22836
C185: -1.26379 | D185: 2.22838
C186: -1.25948 | D186: 2.22839
C187: -1.25518 | D187: 2.22841
C188: -1.25087 | D188: 2.22843
C189: -1.24657 | D189: 2.22844
C190: -1.24226 | D190: 2.22846
C191: -1.23796 | D191: 2.22848
C192: -1.23365 | D192: 2.2285
C193: -1.22934 | D193: 2.22851
C194: -1.22504 | D194: 2.22853
C195: -1.22073 | D195: 2.22855
C196: -1.21643 | D196: 2.22857
C197: -1.21212 | D197: 2.22859
C198: -1.20782 | D198: 2.22861
C199: -1.20351 | D199: 2.22863
C200: -1.19921 | D200: 2.22865
C201: -1.1949 | D201: 2.22867
C202: -1.1906 | D202: 2.22869
C203: -1.18629 | D203: 2.22871
... 810 more rows

Sheet Suppl Fig. 3c
B2: Time (h) | C2: LacI-IPTG | E2: B0034RBS | G2: B0064RBS
C3: Mean value | D3: Error bar | E3: Mean value | F3: Error bar | G3: Mean value | H3: Error bar
B4: 0 | C4: 67.65009 | D4: 46.29844 | E4: 59.2 | F4: 2.82843 | G4: 104.6 | H4: 21.49605
B5: 1 | C5: 271.262 | D5: 80.0828 | E5: 251.1 | F5: 11.49022 | G5: 171.65 | H5: 21.8496
B6: 2 | C6: 502.2997 | D6: 61.43862 | E6: 518 | F6: 21.92031 | G6: 261.75 | H6: 28.33345
B7: 3 | C7: 791.60948 | D7: 100.00718 | E7: 719.4 | F7: 79.77817 | G7: 413.1 | H7: 52.28856
B8: 4 | C8: 1112.98981 | D8: 140.31981 | E8: 1013.5 | F8: 109.09188 | G8: 527.85 | H8: 68.60048

Sheet Suppl Fig. 4d
B2: 30 degrees centigrade
B3: Promoters | C3: Trc | E3: bolA | G3: Fic | I3: S4 | K3: S26 | M3: S38 | O3: S52 | Q3: S58 | S3: S60 | U3: S69 | W3: S119 | Y3: S143 | AA3: rrnB P1 | AC3: rpsJ | AE3: rpsT | AG3: rpsM
B4: Time (h) | C4: Flu./OD | D4: OD | E4: Flu./OD | F4: OD | G4: Flu./OD | H4: OD | I4: Flu./OD | J4: OD | K4: Flu./OD | L4: OD | M4: Flu./OD | N4: OD | O4: Flu./OD | P4: OD | Q4: Flu./OD | R4: OD | S4: Flu./OD | T4: OD | U4: Flu./OD | V4: OD | W4: Flu./OD | X4: OD | Y4: Flu./OD | Z4: OD | AA4: Flu./OD | AB4: OD | AC4: Flu./OD | AD4: OD | AE4: Flu./OD | AF4: OD | AG4: Flu./OD | AH4: OD
B5: 0 | C5: 3.35221 | D5: 2.90497 | E5: 1.72432 | F5: 2.74919 | G5: 2.185 | H5: 2.46914 | I5: 3.56625 | J5: 2.65344 | K5: 2.56816 | L5: 2.85171 | M5: 5.46455 | N5: 3.11688 | O5: 5.70943 | P5: 2.77778 | Q5: 6.47344 | R5: 2.88832 | S5: 8.76261 | T5: 3.42156 | U5: 5.95064 | V5: 3.2567 | W5: 7.17008 | X5: 3.07789 | Y5: 6.95171 | Z5: 2.89944 | AA5: 5.70486 | AB5: 1.63636 | AC5: 3.54292 | AD5: 6.02222 | AE5: 13.2699 | AF5: 6.48889 | AG5: 1.22282 | AH5: 1.37313
B6: 1 | C6: 12.71156 | D6: 16.49235 | E6: 3.45129 | F6: 3.20521 | G6: 4.5539 | H6: 2.72255 | I6: 4.21315 | J6: 3.76317 | K6: 3.13106 | L6: 3.84664 | M6: 7.06106 | N6: 3.61688 | O6: 6.39503 | P6: 3.83951 | Q6: 8.25819 | R6: 3.9923 | S6: 9.01169 | T6: 4.01549 | U6: 7.28946 | V6: 3.9719 | W6: 8.76143 | X6: 3.90704 | Y6: 7.63462 | Z6: 3.83714 | AA6: 9.28114 | AB6: 3.56818 | AC6: 3.78244 | AD6: 8.0963 | AE6: 6.76104 | AF6: 9.25926 | AG6: 20.72159 | AH6: 3.53731
B7: 2 | C7: 14.63206 | D7: 40.17857 | E7: 3.86262 | F7: 17.52443 | G7: 5.00215 | H7: 16.12736 | I7: 6.6894 | J7: 17.34656 | K7: 6.11026 | L7: 14.05577 | M7: 8.91584 | N7: 16.92208 | O7: 7.08104 | P7: 14.46914 | Q7: 6.53658 | R7: 16.0077 | S7: 9.867 | T7: 12.97611 | U7: 8.77312 | V7: 13.21839 | W7: 8.03214 | X7: 15.57789 | Y7: 7.46484 | Z7: 12.64651 | AA7: 11.23375 | AB7: 13.17424 | AC7: 9.73278 | AD7: 16.16296 | AE7: 9.1249 | AF7: 15.59259 | AG7: 13.4415 | AH7: 13.42537
B8: 3 | C8: 23.83388 | D8: 54.23469 | E8: 6.23878 | F8: 41.12052 | G8: 2.46096 | H8: 40.8577 | I8: 4.64482 | J8: 41.17793 | K8: 4.62066 | L8: 37.8834 | M8: 8.84116 | N8: 38.41558 | O8: 7.84292 | P8: 39.40741 | Q8: 7.83985 | R8: 37.61232 | S8: 8.81446 | T8: 33.47966 | U8: 9.90536 | V8: 33.19285 | W8: 9.44896 | X8: 39.13317 | Y8: 8.09347 | Z8: 31.77051 | AA8: 16.955 | AB8: 23.50758 | AC8: 16.4877 | AD8: 33.65185 | AE8: 12.10294 | AF8: 39.93333 | AG8: 10.52337 | AH8: 32.01493
B9: 4 | C9: 30.07697 | D9: 65.74617 | E9: 3.70162 | F9: 54.44951 | G9: 3.88637 | H9: 56.20533 | I9: 4.9189 | J9: 53.62678 | K9: 4.89284 | L9: 51.05196 | M9: 6.12655 | N9: 55 | O9: 8.19941 | P9: 53.88889 | Q9: 6.7044 | R9: 53.11938 | S9: 7.72581 | T9: 48.28922 | U9: 7.81899 | V9: 47.12644 | W9: 8.8887 | X9: 52.80151 | Y9: 8.16346 | Z9: 46.15669 | AA9: 21.94418 | AB9: 43.53788 | AC9: 22.26163 | AD9: 51.57037 | AE9: 19.33561 | AF9: 50.62963 | AG9: 11.18544 | AH9: 55.69403
B10: 5 | C10: 38.5366 | D10: 75.91199 | E10: 2.43665 | F10: 67.3355 | G10: 5.62147 | H10: 66.80962 | I10: 5.95096 | J10: 63.98016 | K10: 6.10097 | L10: 64.71483 | M10: 6.83579 | N10: 66.64935 | O10: 8.96672 | P10: 62.44444 | Q10: 6.89883 | R10: 64.19769 | S10: 8.86027 | T10: 58.26985 | U10: 8.99065 | V10: 59.56577 | W10: 10.29895 | X10: 67.32412 | Y10: 8.72181 | Z10: 57.79149 | AA10: 25.50054 | AB10: 64.51515 | AC10: 38.48054 | AD10: 64.04444 | AE10: 28.27082 | AF10: 68.97037 | AG10: 23.62269 | AH10: 65.95522
B11: 6 | C11: 43.93709 | D11: 78.97959 | E11: 5.89224 | F11: 75.84365 | G11: 6.05054 | H11: 79.03834 | I11: 7.91661 | J11: 77.54495 | K11: 9.08421 | L11: 71.71103 | M11: 9.05338 | N11: 74.12987 | O11: 10.14496 | P11: 73.34568 | Q11: 8.55467 | R11: 73.45315 | S11: 8.59786 | T11: 68.74112 | U11: 10.06021 | V11: 68.58238 | W11: 10.51288 | X11: 76.67085 | Y11: 9.29564 | Z11: 68.01974 | AA11: 39.70214 | AB11: 73.5303 | AC11: 44.82094 | AD11: 74.41481 | AE11: 51.08509 | AF11: 76.58519 | AG11: 29.76457 | AH11: 71.83582
B12: 7 | C12: 51.493 | D12: 87.34694 | E12: 4.27608 | F12: 80.02606 | G12: 5.19217 | H12: 81.11761 | I12: 9.25995 | J12: 80.26038 | K12: 11.4412 | L12: 80.87452 | M12: 10.46396 | N12: 78.46753 | O12: 12.33207 | P12: 77.40741 | Q12: 9.82907 | R12: 82.0154 | S12: 10.65206 | T12: 74.93867 | U12: 12.14951 | V12: 74.46999 | W12: 13.10173 | X12: 79.73618 | Y12: 11.81782 | Z12: 72.48612 | AA12: 67.42785 | AB12: 87.0303 | AC12: 62.2913 | AD12: 88.25926 | AE12: 67.62696 | AF12: 88.84444 | AG12: 37.71989 | AH12: 78.46269
B13: 8 | C13: 53.03969 | D13: 91.1926 | E13: 8.12603 | F13: 89.14658 | G13: 6.21987 | H13: 89.07083 | I13: 11.94616 | J13: 87.61314 | K13: 12.95884 | L13: 85.56401 | M13: 12.24723 | N13: 85.24675 | O13: 13.89764 | P13: 87.11111 | Q13: 11.5586 | R13: 85.80231 | S13: 13.18451 | T13: 77.79212 | U13: 14.33883 | V13: 82.01788 | W13: 15.62809 | X13: 88.29146 | Y13: 14.60235 | Z13: 78.87724 | AA13: 88.40161 | AB13: 98.61364 | AC13: 87.51495 | AD13: 99.77778 | AE13: 88.30759 | AF13: 99.79259 | AG13: 44.33206 | AH13: 99.43284
B14: 9 | C14: 54.61653 | D14: 95.01276 | E14: 21.04751 | F14: 91.75244 | G14: 11.61802 | H14: 94.30799 | I14: 15.402 | J14: 92.30006 | K14: 17.55769 | L14: 90.13942 | M14: 15.726 | N14: 90.50649 | O14: 17.52759 | P14: 93.09877 | Q14: 14.28484 | R14: 93.69705 | S14: 16.86938 | T14: 84.1317 | U14: 17.71149 | V14: 90.16603 | W14: 20.36563 | X14: 92.70101 | Y14: 18.32769 | Z14: 85.92227 | AA14: 95.42225 | AB14: 99.18939 | AC14: 92.27088 | AD14: 99.94074 | AE14: 96.67413 | AF14: 99.85926 | AG14: 52.80781 | AH14: 99.52239
B15: 10 | C15: 60.61921 | D15: 95.63776 | E15: 36.65634 | F15: 94.98371 | G15: 26.24077 | H15: 98.8694 | I15: 31.28771 | J15: 94.42033 | K15: 27.6048 | L15: 93.34601 | M15: 22.40928 | N15: 94.38961 | O15: 30.57755 | P15: 100.28395 | Q15: 17.72679 | R15: 98.29268 | S15: 21.22468 | T15: 92.95029 | U15: 23.33933 | V15: 95.10856 | W15: 38.89633 | X15: 97.44975 | Y15: 24.21898 | Z15: 91.79519 | AA15: 97.08788 | AB15: 99.36364 | AC15: 90.66957 | AD15: 100.27407 | AE15: 97.04742 | AF15: 99.96296 | AG15: 73.75332 | AH15: 99.57463
B16: 11 | C16: 68.48365 | D16: 97.5574 | E16: 62.941 | F16: 97.05537 | G16: 57.86561 | H16: 98.07667 | I16: 63.52979 | J16: 97.44575 | K16: 56.28176 | L16: 96.75539 | M16: 50.36129 | N16: 98.50649 | O16: 57.98502 | P16: 95.4321 | Q16: 43.60105 | R16: 97.58665 | S16: 26.59175 | T16: 92.70497 | U16: 36.1853 | V16: 96.70498 | W16: 66.9708 | X16: 97.97739 | Y16: 37.72468 | Z16: 93.02899 | AA16: 99.62311 | AB16: 99.53788 | AC16: 95.54085 | AD16: 100.22222 | AE16: 98.86818 | AF16: 100.17778 | AG16: 81.60292 | AH16: 99.95522
B17: 12 | C17: 76.4067 | D17: 97.46811 | E17: 91.4762 | F17: 99.0228 | G17: 87.06567 | H17: 100.02599 | I17: 89.76525 | J17: 98.2765 | K17: 79.61635 | L17: 99.02408 | M17: 64.93641 | N17: 99.97403 | O17: 77.26606 | P17: 99.2716 | Q17: 81.25441 | R17: 98.97304 | S17: 50.55259 | T17: 97.55972 | U17: 68.37409 | V17: 98.67178 | W17: 88.33352 | X17: 99.17085 | Y17: 61.55052 | Z17: 98.40839 | AA17: 98.22255 | AB17: 99.74242 | AC17: 95.83014 | AD17: 100.39259 | AE17: 98.14426 | AF17: 100.20741 | AG17: 89.30373 | AH17: 99.34328
B18: 13 | C18: 83.30028 | D18: 100.02551 | E18: 99.66215 | F18: 100.01303 | G18: 96.40001 | H18: 98.8564 | I18: 96.32034 | J18: 100.0248 | K18: 92.25565 | L18: 99.92395 | M18: 85.48171 | N18: 99.85714 | O18: 90.99146 | P18: 99.11111 | Q18: 94.2161 | R18: 98.97304 | S18: 78.8044 | T18: 98.68302 | U18: 90.83545 | V18: 99.57854 | W18: 96.04535 | X18: 99.98744 | Y18: 84.56731 | Z18: 99.97532 | AA18: 99.99803 | AB18: 99.75758 | AC18: 99.85008 | AD18: 100.35556 | AE18: 100 | AF18: 100.21481 | AG18: 95.08485 | AH18: 99.0597
B19: 14 | C19: 100.00017 | D19: 99.8852 | E19: 100.00003 | F19: 98.89251 | G19: 100.00003 | H19: 99.80507 | I19: 100.00005 | J19: 96.7142 | K19: 100.00003 | L19: 100.02535 | M19: 100.00004 | N19: 98.42857 | O19: 100 | P19: 97.79012 | Q19: 100.00003 | R19: 100 | S19: 100 | T19: 99.98709 | U19: 100 | V19: 100.02554 | W19: 100.00003 | X19: 98.79397 | Y19: 100.00003 | Z19: 98.38371 | AA19: 95.15564 | AB19: 99.69697 | AC19: 100.00059 | AD19: 100.2 | AE19: 99.75212 | AF19: 100.05185 | AG19: 100.00002 | AH19: 98.73134

Sheet Suppl Fig. 4e
B2: 37 degrees centigrade
B3: Promoters | C3: Trc | E3: bolA | G3: Fic | I3: S4 | K3: S26 | M3: S38 | O3: S52 | Q3: S58 | S3: S60 | U3: S69 | W3: S119 | Y3: S143 | AA3: rrnB P1 | AC3: rpsJ | AE3: rpsT | AG3: rpsM
B4: Time (h) | C4: Flu./OD | D4: OD | E4: Flu./OD | F4: OD | G4: Flu./OD | H4: OD | I4: Flu./OD | J4: OD | K4: Flu./OD | L4: OD | M4: Flu./OD | N4: OD | O4: Flu./OD | P4: OD | Q4: Flu./OD | R4: OD | S4: Flu./OD | T4: OD | U4: Flu./OD | V4: OD | W4: Flu./OD | X4: OD | Y4: Flu./OD | Z4: OD | AA4: Flu./OD | AB4: OD | AC4: Flu./OD | AD4: OD | AE4: Flu./OD | AF4: OD | AG4: Flu./OD | AH4: OD
B5: 0 | C5: 5.62006 | D5: 2.08333 | E5: 0.03589 | F5: 3.46154 | G5: 0.74637 | H5: 3.84615 | I5: 2.18539 | J5: 3.84615 | K5: 1.89439 | L5: 2.85814 | M5: 0.12577 | N5: 2.56385 | O5: 0.53161 | P5: 3.81828 | Q5: 4.27741 | R5: 3.61569 | S5: 4.21151 | T5: 3.74036 | U5: 6.61292 | V5: 3 | W5: 8.59646 | X5: 4.38462 | Y5: 7.20399 | Z5: 3.42866 | AA5: 13.28244 | AB5: 3.73611 | AC5: 3.30641 | AD5: 3.97222 | AE5: 11.56635 | AF5: 3.68056 | AG5: 1.62819 | AH5: 3.58333
B6: 1 | C6: 17.69929 | D6: 8.33333 | E6: 0.03262 | F6: 7.69231 | G6: 2.64517 | H6: 7.69231 | I6: 4.30857 | J6: 8.97462 | K6: 2.82271 | L6: 9.09353 | M6: 0.44884 | N6: 10.25615 | O6: 1.77256 | P6: 9.0914 | Q6: 3.63769 | R6: 7.89453 | S6: 4.90037 | T6: 7.79241 | U6: 7.1646 | V6: 7.69231 | W6: 8.55127 | X6: 7.69231 | Y6: 9.20157 | Z6: 9.0914 | AA6: 15.20244 | AB6: 8.33333 | AC6: 6.51204 | AD6: 8.33333 | AE6: 21.41205 | AF6: 8.33333 | AG6: 4.2346 | AH6: 8.33333
B7: 2 | C7: 23.73809 | D7: 41.66667 | E7: 0.0435 | F7: 38.46154 | G7: 4.80298 | H7: 38.46154 | I7: 5.74838 | J7: 38.46154 | K7: 4.12034 | L7: 38.97116 | M7: 4.99077 | N7: 38.46154 | O7: 5.8229 | P7: 38.96205 | Q7: 3.20664 | R7: 39.47265 | S7: 5.19246 | T7: 38.96205 | U7: 8.62025 | V7: 38.46154 | W7: 8.3578 | X7: 38.46154 | Y7: 6.72523 | Z7: 38.96205 | AA7: 22.85964 | AB7: 41.66667 | AC7: 19.02402 | AD7: 41.66667 | AE7: 26.22267 | AF7: 41.66667 | AG7: 7.87966 | AH7: 41.66667
B8: 3 | C8: 32.46165 | D8: 83.33333 | E8: 0.54375 | F8: 70.51308 | G8: 6.30011 | H8: 70.51308 | I8: 8.49106 | J8: 70.51308 | K8: 12.64013 | L8: 70.14809 | M8: 13.31965 | N8: 69.23077 | O8: 13.74191 | P8: 71.43069 | Q8: 10.58959 | R8: 71.05076 | S8: 12.57957 | T8: 70.13169 | U8: 17.03044 | V8: 69.23077 | W8: 15.47911 | X8: 69.23077 | Y8: 7.41357 | Z8: 71.43069 | AA8: 29.95819 | AB8: 83.33333 | AC8: 30.26541 | AD8: 83.33333 | AE8: 45.8873 | AF8: 83.33333 | AG8: 11.55875 | AH8: 83.33333
B9: 4 | C9: 40.78822 | D9: 91.66667 | E9: 0.58017 | F9: 88.46154 | G9: 11.50476 | H9: 91.02538 | I9: 13.25768 | J9: 87.17923 | K9: 17.52177 | L9: 85.73655 | M9: 17.72774 | N9: 84.61538 | O9: 17.81742 | P9: 88.31372 | Q9: 17.17844 | R9: 86.83982 | S9: 18.48301 | T9: 85.71651 | U9: 24.75962 | V9: 84.61538 | W9: 21.87 | X9: 84.61538 | Y9: 8.20974 | Z9: 88.31372 | AA9: 51.80937 | AB9: 91.66667 | AC9: 38.20444 | AD9: 91.66667 | AE9: 52.16305 | AF9: 91.66667 | AG9: 21.44047 | AH9: 91.66667
B10: 5 | C10: 50.35632 | D10: 100 | E10: 48.09798 | F10: 92.30769 | G10: 31.31553 | H10: 92.30769 | I10: 54.6937 | J10: 92.30769 | K10: 59.6974 | L10: 93.53079 | M10: 60.01845 | N10: 92.30769 | O10: 61.0814 | P10: 93.50892 | Q10: 51.43137 | R10: 94.73435 | S10: 58.7654 | T10: 93.50892 | U10: 65.61899 | V10: 92.30769 | W10: 62.57078 | X10: 92.30769 | Y10: 15.88237 | Z10: 93.50892 | AA10: 75.8312 | AB10: 100 | AC10: 63.69787 | AD10: 100 | AE10: 86.38693 | AF10: 100 | AG10: 28.62411 | AH10: 100
B11: 6 | C11: 60.34186 | D11: 100 | E11: 69.83797 | F11: 92.30769 | G11: 51.68539 | H11: 92.30769 | I11: 74.04688 | J11: 92.30769 | K11: 77.09658 | L11: 93.53079 | M11: 77.26181 | N11: 92.30769 | O11: 77.60144 | P11: 93.50892 | Q11: 64.96203 | R11: 94.73435 | S11: 75.24665 | T11: 93.50892 | U11: 80.86534 | V11: 92.30769 | W11: 78.06271 | X11: 92.30769 | Y11: 29.47846 | Z11: 93.50892 | AA11: 85.4795 | AB11: 100 | AC11: 80.97937 | AD11: 100 | AE11: 99.54872 | AF11: 100 | AG11: 48.78988 | AH11: 100
B12: 7 | C12: 67.04163 | D12: 100 | E12: 78.05666 | F12: 100 | G12: 62.99784 | H12: 100 | I12: 79.94882 | J12: 100 | K12: 81.72531 | L12: 101.32502 | M12: 81.67904 | N12: 100 | O12: 81.80321 | P12: 101.30133 | Q12: 79.72353 | R12: 102.62888 | S12: 80.21141 | T12: 101.30133 | U12: 83.72116 | V12: 100 | W12: 81.62593 | X12: 100 | Y12: 44.17842 | Z12: 101.30133 | AA12: 94.48058 | AB12: 100 | AC12: 90.97181 | AD12: 100 | AE12: 101.29947 | AF12: 100 | AG12: 74.27575 | AH12: 100
B13: 8 | C13: 72.81892 | D13: 100 | E13: 89.9391 | F13: 92.30769 | G13: 78.14682 | H13: 92.30769 | I13: 90.94078 | J13: 93.59 | K13: 91.91348 | L13: 93.53079 | M13: 91.86576 | N13: 94.87154 | O13: 91.94104 | P13: 94.80792 | Q13: 90.18848 | R13: 94.73435 | S13: 91.11074 | T13: 93.50892 | U13: 93.06316 | V13: 92.30769 | W13: 91.85458 | X13: 92.30769 | Y13: 52.66995 | Z13: 94.80792 | AA13: 100.04619 | AB13: 100 | AC13: 92.75568 | AD13: 100 | AE13: 99.78552 | AF13: 100 | AG13: 84.87047 | AH13: 100
B14: 9 | C14: 76.33472 | D14: 100 | E14: 96.52276 | F14: 92.30769 | G14: 88.30538 | H14: 92.30769 | I14: 96.47454 | J14: 92.30769 | K14: 96.72171 | L14: 93.53079 | M14: 96.60375 | N14: 92.30769 | O14: 96.65859 | P14: 93.50892 | Q14: 95.62976 | R14: 94.73435 | S14: 96.00365 | T14: 93.50892 | U14: 97.28816 | V14: 92.30769 | W14: 96.59155 | X14: 92.30769 | Y14: 67.12247 | Z14: 93.50892 | AA14: 99.50271 | AB14: 100 | AC14: 96.1183 | AD14: 100 | AE14: 100.04302 | AF14: 100 | AG14: 91.46126 | AH14: 100
B15: 10 | C15: 81.86829 | D15: 95.83333 | E15: 98.07515 | F15: 92.30769 | G15: 92.54359 | H15: 92.30769 | I15: 98.17358 | J15: 92.30769 | K15: 97.88302 | L15: 93.53079 | M15: 97.80996 | N15: 92.30769 | O15: 97.93667 | P15: 93.50892 | Q15: 97.42197 | R15: 94.73435 | S15: 97.63161 | T15: 93.50892 | U15: 98.17998 | V15: 92.30769 | W15: 97.75371 | X15: 92.30769 | Y15: 77.57808 | Z15: 93.50892 | AA15: 98.58085 | AB15: 97.22222 | AC15: 98.72134 | AD15: 97.22222 | AE15: 98.74697 | AF15: 97.22222 | AG15: 95.89738 | AH15: 97.22222
B16: 11 | C16: 89.93478 | D16: 91.66667 | E16: 100.45457 | F16: 92.30769 | G16: 97.14046 | H16: 100 | I16: 100.77439 | J16: 92.30769 | K16: 100 | L16: 93.53079 | M16: 100 | N16: 92.30769 | O16: 100 | P16: 93.50892 | Q16: 100.00001 | R16: 94.73435 | S16: 100 | T16: 93.50892 | U16: 99.99998 | V16: 92.30769 | W16: 100.00003 | X16: 92.30769 | Y16: 88.98974 | Z16: 93.50892 | AA16: 96.53726 | AB16: 93.05556 | AC16: 98.70987 | AD16: 93.05556 | AE16: 95.66894 | AF16: 93.05556 | AG16: 99.84475 | AH16: 93.05556
B17: 12 | C17: 99.99998 | D17: 91.66667 | E17: 100 | F17: 100 | G17: 100.00002 | H17: 100 | I17: 100 | J17: 100 | K17: 98.71181 | L17: 100.02572 | M17: 98.84121 | N17: 100 | O17: 98.80037 | P17: 100.00234 | Q17: 99.2403 | R17: 99.99763 | S17: 99.07485 | T17: 100.00234 | U17: 98.22247 | V17: 100 | W17: 98.60299 | X17: 100 | Y17: 100 | Z17: 100.00234 | AA17: 99.99999 | AB17: 93.05556 | AC17: 99.99999 | AD17: 93.05556 | AE17: 97.59553 | AF17: 93.05556 | AG17: 100 | AH17: 93.05556

Sheet Suppl Fig. 6b
B2: Time (h) | C2: rpsT P2-(teF)YFP
C3: Ptet-1 | D3: Pfic-tev | E3: PbolA-tev | F3: PS4-tev | G3: PS60-tev
B4: 0 | C4: 91.50834 | D4: 43.58334 | E4: 81.40514 | F4: 98.00758 | G4: 83.23344
B5: 1 | C5: 266.4343 | D5: 95.58238 | E5: 128.37976 | F5: 148.69217 | G5: 163.16495
B6: 2 | C6: 365.2608 | D6: 221.1895 | E6: 247.01752 | F6: 233.39638 | G6: 205.79035
B7: 3 | C7: 627.3353 | D7: 405.68958 | E7: 315.88709 | F7: 340.23026 | G7: 298.72279
B8: 4 | C8: 709.6405 | D8: 641.48648 | E8: 683.53739 | F8: 649.89785 | G8: 452.66461
B9: 5 | C9: 1149.852 | D9: 811.55539 | E9: 785.17986 | F9: 857.18953 | G9: 688.5784
B10: 6 | C10: 1344.24 | D10: 1045.43916 | E10: 977.04591 | F10: 965.68305 | G10: 872.75163
B11: 7 | C11: 1369.57 | D11: 1279.70149 | E11: 1159.07812 | F11: 1072.46768 | G11: 818.45174
B12: 8 | C12: 1339.74 | D12: 1395.2642 | E12: 1247.10781 | F12: 1134.20105 | G12: 762.86667
B13: 9 | C13: 1344.934 | D13: 1369.91162 | E13: 1219.13141 | F13: 1089.50828 | G13: 717.78141
B14: 10 | C14: 1316.467 | D14: 1334.70189 | E14: 1186.59951 | F14: 1012.41193 | G14: 609.44822
B15: 11 | C15: 1320.6 | D15: 1263.7171 | E15: 1067.31178 | F15: 907.54716 | G15: 526.16164
B16: 12 | C16: 1344.24 | D16: 1172.88226 | E16: 1042.73165 | F16: 845.7467 | G16: 359.14586
B17: 15 | C17: 1342.8431 | D17: 1059.7081 | E17: 905.6011 | F17: 664.6481 | G17: 209.6405

Sheet Suppl Fig. 7b
B2: mCherry
B3: Control | D3: B0033rbs | F3: B0064rbs | H3: B0034rbs
B4: ATC- | C4: ATC+ | D4: ATC- | E4: ATC+ | F4: ATC- | G4: ATC+ | H4: ATC- | I4: ATC+
B5: 356.42584 | C5: 356.42584 | D5: 341.96364 | E5: 141.96364 | F5: 99.18525 | G5: 49.18525 | H5: 64.47686 | I5: 34.47686
B6: 367.49171 | C6: 347.56062 | D6: 316.41233 | E6: 108.74644 | F6: 113.6932 | G6: 42.01526 | H6: 83.83252 | I6: 29.37467
B7: 341.01467 | C7: 350.69028 | D7: 361.57723 | E7: 136.57453 | F7: 115.30766 | G7: 52.28648 | H7: 77.56062 | I7: 43.49845
B8: 342.91443 | C8: 354.65632 | D8: 321.76921 | E8: 161.96611 | F8: 126.46997 | G8: 55.67361 | H8: 70.69028 | I8: 42.71181
B9: 332.36445 | C9: 359.39613 | D9: 319.33345 | E9: 145.49372 | F9: 135.49915 | G9: 54.48108 | H9: 64.65632 | I9: 40.34597
B12: GFP
B13: Control | D13: B0033rbs | F13: B0064rbs | H13: B0034rbs
B14: ATC- | C14: ATC+ | D14: ATC- | E14: ATC+ | F14: ATC- | G14: ATC+ | H14: ATC- | I14: ATC+
B15: 1.5581 | C15: 1.5581 | D15: 51.9339 | E15: 191.9339 | F15: 71.72854 | G15: 391.72854 | H15: 108.14796 | I15: 608.14796
B16: 1.30766 | C16: 5.30766 | D16: 32.8605 | E16: 232.8605 | F16: 67.54719 | G16: 457.54719 | H16: 83.83252 | I16: 667.8847
B17: 2.46997 | C17: 6.46997 | D17: 28.61721 | E17: 218.61721 | F17: 53.80078 | G17: 453.80078 | H17: 84.08483 | I17: 744.08483
B18: 1.49915 | C18: 5.49915 | D18: 22.80822 | E18: 222.80822 | F18: 48.48551 | G18: 408.48551 | H18: 84.94818 | I18: 624.94818
B19: 1.14796 | C19: 1.14796 | D19: 24.81973 | E19: 204.81973 | F19: 46.6046 | G19: 406.6046 | H19: 80.21407 | I19: 680.21407

Sheet Suppl Fig. 8
C2: TEVp | E2: TVMVp
C3: tev recognition site | D3: tvmv recognition site | E3: tev recognition site | F3: tvmv recognition site
B4: Parallel 1 | C4: 986.06769 | D4: 7578.09525 | E4: 11233.93715 | F4: 553.60276
B5: Parallel 2 | C5: 819.61745 | D5: 7972.78445 | E5: 11887.44655 | F5: 550.8843
B6: Parallel 3 | C6: 828.86074 | D6: 8977.99207 | E6: 10177.84109 | F6: 615.39201

Sheet Suppl Fig. 9a
C2: GFP
C3: ATC- | D3: ATC+
B4: Parallel 1 | C4: 3639.82936 | D4: 115.12737
B5: Parallel 2 | C5: 3688.5798 | D5: 190.46589
B6: Parallel 3 | C6: 3768.0888 | D6: 167.51656
B7: Parallel 4 | C7: 3509.23092 | D7: 164.51293
B8: Parallel 5 | C8: 3434.21519 | D8: 174.36334
B9: Parallel 6 | C9: 3006.39174 | D9: 204.97993

Sheet Suppl Fig. 9b
C2: mCherry
C3: ATC- | D3: ATC+
B4: Parallel 1 | C4: 41.01467 | D4: 226.41233
B5: Parallel 2 | C5: 42.91443 | D5: 161.57723
B6: Parallel 3 | C6: 32.36445 | D6: 258.74644
B7: Parallel 4 | C7: 40.34597 | D7: 186.57453
B8: Parallel 5 | C8: 43.49845 | D8: 241.56109
B9: Parallel 6 | C9: 42.71181 | D9: 178.61721

Sheet Suppl Fig. 11
B1: Fluorescence intensity
C2: TEVp | D2: TVMVp | E2: SuMMVp
B3: tev recognition site | C3: 986.07 | D3: 7578.10 | E3: 9690.83
B4: tvmv recognition site | C4: 11233.94 | D4: 553.60 | E4: 7972.78
B5: summv recognition site | C5: 8426.10 | D5: 4853.22 | E5: 525.31
B7: Fold change
C8: TEVp | D8: TVMVp | E8: SuMMVp
B9: tev recognition site | C9: =11233.94/C3 -> 11.39 | D9: 1.48 | E9: 1.16
B10: tvmv recognition site | C10: 1.00 | D10: 20.29 | E10: 1.41
B11: summv recognition site | C11: 1.33 | D11: 2.31 | E11: 21.39

Sheet Suppl Fig. 12b
B2: Time (h) | C2: Parallel 1 | D2: Parallel 2 | E2: Parallel 3 | F2: Parallel 4 | G2: Parallel 5 | H2: Parallel 6 | I2: Mean value
B3: 0 | C3: 0.0368 | D3: 0.07154 | E3: 0.02893 | F3: 0.07154 | G3: 0.07878 | H3: 0.08455 | I3: 0.05006
B4: 0.5 | C4: 0.35517 | D4: 0.18436 | E4: 0.21298 | F4: 0.24073 | G4: 0.2379 | H4: 0.29128 | I4: 0.25078
B5: 1 | C5: 0.21146 | D5: 0.18574 | E5: 0.17406 | F5: 0.16832 | G5: 0.10254 | H5: 0.21623 | I5: 0.17463
B6: 1.5 | C6: 0.1332 | D6: 0.09837 | E6: 0.14017 | F6: 0.13538 | G6: 0.11732 | H6: 0.12169 | I6: 0.12325
B7: 2 | C7: 0.17226 | D7: 0.2122 | E7: 0.19573 | F7: 0.23483 | G7: 0.23673 | H7: 0.23519 | I7: 0.21305
B8: 2.5 | C8: 0.05862 | D8: 0.08758 | E8: 0.1195 | F8: 0.05323 | G8: 0.10702 | H8: 0.11345 | I8: 0.08941
B9: 3 | C9: 0.28056 | D9: 0.32807 | E9: 0.26493 | F9: 0.27348 | G9: 0.2687 | H9: 0.27085 | I9: 0.27876
B10: 3.5 | C10: 0.44132 | D10: 0.49056 | E10: 0.44319 | F10: 0.57686 | G10: 0.49834 | H10: 0.4882 | I10: 0.48607
B11: 4 | C11: 0.99492 | D11: 0.91158 | E11: 0.67647 | F11: 0.86046 | G11: 0.70293 | H11: 0.74051 | I11: 0.80619
B12: 4.5 | C12: 0.95951 | D12: 0.85986 | E12: 0.91832 | F12: 0.78425 | G12: 0.92592 | H12: 0.79284 | I12: 0.86545
B13: 5 | C13: 0.81845 | D13: 0.72878 | E13: 0.78455 | F13: 0.67634 | G13: 0.705 | H13: 0.71447 | I13: 0.74136
B14: 5.5 | C14: 0.83348 | D14: 0.81679 | E14: 0.87357 | F14: 0.78229 | G14: 0.88016 | H14: 0.87839 | I14: 0.83717
B15: 6 | C15: 0.88917 | D15: 0.78302 | E15: 0.86901 | F15: 0.72533 | G15: 0.81096 | H15: 0.75254 | I15: 0.79759
B16: 6.5 | C16: 0.81822 | D16: 0.67914 | E16: 0.65509 | F16: 0.64902 | G16: 0.70022 | H16: 0.68555 | I16: 0.69106
B17: 7 | C17: 0.67906 | D17: 0.63961 | E17: 0.57277 | F17: 0.69 | G17: 0.6573 | H17: 0.57439 | I17: 0.62986
B18: 7.5 | C18: 0.67645 | D18: 0.70852 | E18: 0.74263 | F18: 0.75574 | G18: 0.71658 | H18: 0.70143 | I18: 0.71125

Sheet Suppl Fig. 13a
B2: Cell growth (OD600)
B3: Time (h) | C3: + | E3: - | G3: DS7 | I3: DS4 | K3: DS9
C4: Mean value | D4: Error bar | E4: Mean value | F4: Error bar | G4: Mean value | H4: Error bar | I4: Mean value | J4: Error bar | K4: Mean value | L4: Error bar
B5: 0 | C5: 0.1 | D5: 0.01 | E5: 0.1 | F5: 0.01 | G5: 0.1 | H5: 0.01 | I5: 0.1 | J5: 0.01 | K5: 0.1 | L5: 0
B6: 12 | C6: 1.29 | D6: 0.15385 | E6: 0.11 | F6: 0 | G6: 1.17 | H6: 0.20357 | I6: 0.15 | J6: 0.02583 | K6: 0.82 | L6: 0.07
B7: 24 | C7: 2.84 | D7: 0.21112 | E7: 0.09 | F7: 0 | G7: 2.5 | H7: 0.27473 | I7: 0.22 | J7: 0.0395 | K7: 2.22 | L7: 0.0625
B8: 36 | C8: 6.44 | D8: 0.41112 | E8: 0.06 | F8: 0 | G8: 4.795 | H8: 0.15251 | I8: 0.42 | J8: 0.06646 | K8: 3.82 | L8: 0.2129
B9: 48 | C9: 7.89 | D9: 0.22312 | E9: 0.01 | F9: 0 | G9: 6.38 | H9: 0.47173 | I9: 0.62 | J9: 0.14238 | K9: 4.8 | L9: 0.4117
B10: 60 | C10: 7.58 | D10: 0.32222 | E10: 0.01 | F10: 0 | G10: 6.71 | H10: 0.64833 | I10: 0.72 | J10: 0.13048 | K10: 5.77 | L10: 0.3228
B11: 72 | C11: 7.37 | D11: 0.27577 | E11: 0.01 | F11: 0 | G11: 6.82 | H11: 0.36364 | I11: 0.89 | J11: 0.00707 | K11: 6.22 | L11: 0.21213

Sheet Suppl Fig. 13b
B2: Shikimate (g/L)
B3: Time (h) | C3: + | E3: - | G3: DS7 | I3: DS4 | K3: DS9
C4: Mean value | D4: Error bar | E4: Mean value | F4: Error bar | G4: Mean value | H4: Error bar | I4: Mean value | J4: Error bar | K4: Mean value | L4: Error bar
B5: 0 | C5: 0 | D5: 0 | E5: 0 | F5: 0 | G5: 0 | H5: 0 | I5: 0 | J5: 0 | K5: 0 | L5: 0
B6: 12 | C6: 0.00439 | D6: 0.00302 | E6: 0.02506 | F6: 0 | G6: 0.02965 | H6: 0.01841 | I6: 0.06299 | J6: 0 | K6: 0.03978 | L6: 0.05501
B7: 24 | C7: 0.06086 | D7: 0.01544 | E7: 0.28597 | F7: 0 | G7: 0.25857 | H7: 0.11316 | I7: 0.17385 | J7: 0.03187 | K7: 0.21663 | L7: 0.08358
B8: 36 | C8: 0.07105 | D8: 0.01297 | E8: 0.17687 | F8: 0 | G8: 0.86318 | H8: 0.10533 | I8: 0.39224 | J8: 0.05663 | K8: 0.48374 | L8: 0.11773
B9: 48 | C9: 0.07957 | D9: 0.0257 | E9: 0.0648 | F9: 0 | G9: 1.30746 | H9: 0.15046 | I9: 0.41018 | J9: 0.03812 | K9: 0.97173 | L9: 0.05609
B10: 60 | C10: 0.06148 | D10: 0.0191 | E10: 0.03758 | F10: 0 | G10: 1.86997 | H10: 0.16269 | I10: 0.44512 | J10: 0.05987 | K10: 1.19007 | L10: 0.03187
B11: 72 | C11: 0.05 | D11: 0.01788 | E11: 0.02284 | F11: 0 | G11: 2.13954 | H11: 0.10552 | I11: 0.44418 | J11: 0.01345 | K11: 1.29185 | L11: 0.05328

Sheet Suppl Fig. 15a
B2: Xylose (g/L)
C3: Glucose vs Xylose
B4: Time (h) | C4: 0.5 | E4: 1 | G4: 1.5 | I4: 2
C5: Mean value | D5: Error bar | E5: Mean value | F5: Error bar | G5: Mean value | H5: Error bar | I5: Mean value | J5: Error bar
B6: 0 | C6: 9.87543 | D6: 0 | E6: 9.82069 | F6: 0 | G6: 9.75733 | H6: 0 | I6: 9.72414 | J6: 0
B7: 12 | C7: 9.06681 | D7: 0.27797 | E7: 9.26358 | F7: 0.16977 | G7: 9.25086 | H7: 0.23773 | I7: 9.30905 | J7: 0.01036
B8: 24 | C8: 7.61207 | D8: 0.21091 | E8: 8.26552 | F8: 0.25349 | G8: 8.17241 | H8: 0.16946 | I8: 8.17802 | J8: 0.10911
B9: 36 | C9: 6.87414 | D9: 0.20482 | E9: 7.80345 | F9: 0.3766 | G9: 7.5125 | H9: 0.03414 | I9: 7.74784 | J9: 0.27309
B10: 48 | C10: 4.98233 | D10: 0.36986 | E10: 6.46336 | F10: 0.23707 | G10: 7.12284 | H10: 0.35051 | I10: 7.17759 | J10: 0.23463

Sheet Suppl Fig. 15b
B2: Glucose (g/L)
C3: Glucose vs Xylose
B4: Time (h) | C4: 0.5 | E4: 1 | G4: 1.5 | I4: 2
C5: Mean value | D5: Error bar | E5: Mean value | F5: Error bar | G5: Mean value | H5: Error bar | I5: Mean value | J5: Error bar
B6: 0 | C6: 5.79749 | D6: 0.2 | E6: 10.05146 | F6: 0 | G6: 14.72 | H6: 0 | I6: 19.31 | J6: 0
B7: 12 | C7: 2.23431 | D7: 0.01006 | E7: 7.07594 | F7: 0.04053 | G7: 11.77636 | H7: 0.35888 | I7: 16.7977 | J7: 0.11509
B8: 24 | C8: 0 | D8: 0 | E8: 4.02678 | F8: 0.14083 | G8: 8.61464 | H8: 0.23728 | I8: 13.14561 | J8: 0.88877
B9: 36 | C9: 0 | D9: 0 | E9: 1.33264 | F9: 0.1284 | G9: 6.10879 | H9: 0.05799 | I9: 10.90167 | J9: 0.81835
B10: 48 | C10: 0 | D10: 0 | E10: 0 | F10: 0 | G10: 3.50418 | H10: 0.60416 | I10: 7.98619 | J10: 1.04675

Sheet Suppl Fig. 16
B2: Glucose (g/L) | H2: OD600
B3: Time (h) | C3: Strain XN | E3: Strain XO | H3: Time (h) | I3: Strain XN | K3: Strain XO
C4: Mean value | D4: Error bar | E4: Mean value | F4: Error bar | I4: Mean value | J4: Error bar | K4: Mean value | L4: Error bar
B5: 0 | C5: 9.52944 | D5: 0.02121 | E5: 9.55239 | F5: 0.63676 | H5: 0 | I5: 0.1 | J5: 0.02 | K5: 0.1 | L5: 0.01
B6: 12 | C6: 4.55 | D6: 0.2192 | E6: 5.12561 | F6: 0.30019 | H6: 12 | I6: 2.38 | J6: 0.11 | K6: 2.18 | L6: 0.15
B7: 24 | C7: 3.00715 | D7: 0.44548 | E7: 3.41127 | F7: 0.57885 | H7: 24 | I7: 5.32 | J7: 0.22 | K7: 5.65 | L7: 0.15
B8: 36 | C8: 1.0656 | D8: 0.56569 | E8: 1.34441 | F8: 0.86478 | H8: 36 | I8: 5.77 | J8: 0.18 | K8: 5.41 | L8: 0.19
B9: 48 | C9: 0.40805 | D9: 0.17697 | E9: 0.53706 | F9: 0.20198 | H9: 48 | I9: 5.64 | J9: 0.11 | K9: 5.55 | L9: 0.25
B10: 60 | C10: 0 | D10: 0 | E10: 0.16863 | F10: 0 | H10: 60 | I10: 5.4 | J10: 0.14 | K10: 5.91 | L10: 0.25
B11: 72 | C11: 0 | D11: 0 | E11: 0.03636 | F11: 0.17073 | H11: 72 | I11: 5.17 | J11: 0.2 | K11: 6.19 | L11: 0.35

Sheet Suppl Fig. 17
B2: ph value | C2: Parallel 1 | D2: Parallel 2 | E2: Parallel 3 | F2: Mean value | G2: Error bar
B3: 3 | C3: 1.0339 | D3: 1.04025 | E3: 1.03564 | F3: =AVERAGE(C3:E3) -> 1.036596667 | G3: =STDEVA(C3:E3) -> 0.003281315793
B4: 3.5 | C4: 0.79115 | D4: 0.76361 | E4: 0.81125 | F4: =AVERAGE(C4:E4) -> 0.78867 | G4: =STDEVA(C4:E4) -> 0.0239166302
B5: 4 | C5: 0.60802 | D5: 0.63418 | E5: 0.61911 | F5: 0.6204366667 | G5: 0.01313036303
B6: 4.5 | C6: 0.42108 | D6: 0.38303 | E6: 0.38107 | F6: 0.39506 | G6: 0.02255528098
B7: 5 | C7: 0.39404 | D7: 0.39621 | E7: 0.4036 | F7: 0.39795 | G7: 0.005011895849
B8: 5.5 | C8: 0.36139 | D8: 0.36221 | E8: 0.35696 | F8: 0.3601866667 | G8: 0.002824293422
B9: 6 | C9: 0.63204 | D9: 0.68255 | E9: 0.67389 | F9: 0.6628266667 | G9: 0.02701135008
B10: 6.5 | C10: 0.93043 | D10: 0.86599 | E10: 0.85236 | F10: 0.8829266667 | G10: 0.041699751
B11: 7 | C11: 1.06276 | D11: 1.07705 | E11: 1.05654 | F11: 1.06545 | G11: 0.01051627786
B12: 7.5 | C12: 1.31898 | D12: 1.34031 | E12: 1.35788 | F12: 1.339056667 | G12: 0.01948026266
B13: 8 | C13: 1.5596 | D13: 1.5549 | E13: 1.52472 | F13: 1.546406667 | G13: 0.01892765525

Sheet Suppl Fig. 18
B2: Time (h) | C2: XO | E2: XN
C4: Mean value | D4: Error bar | E4: Mean value | F4: Error bar
B5: 12 | C5: 6.92E+09 | D5: 4.24E+08 | E5: 5.60E+09 | F5: 5.37E+08
B6: 24 | C6: 4.63E+09 | D6: 1.00E+09 | E6: 7.60E+08 | F6: 1.70E+08
B7: 36 | C7: 4.61E+09 | D7: 8.34E+08 | E7: 1.90E+07 | F7: 1.41E+07

Sheet Suppl Fig. 19
C2: Xylonate (g/L)
B3: Culture temperature | C3: 30 | E3: 37
B4: Culture medium | C4: Mean value | D4: Error bar | E4: Mean value | F4: Error bar
B5: M9 | C5: 4.31816 | D5: 0.71209 | E5: 6.79211 | F5: 0.76484
B6: 1.5X LB | C6: 5.63465 | D6: 0.46796 | E6: 9.3644 | F6: 0.87668
B7: TB | C7: 9.27909 | D7: 0.35661 | E7: 13.11063 | F7: 0.74589
C10: Acetate (g/L)
B11: Culture temperature | C11: 30 | E11: 37
B12: Culture medium | C12: Mean value | D12: Error bar | E12: Mean value | F12: Error bar
B13: M9 | C13: 2.12294 | D13: 0.58919 | E13: 2.10798 | F13: 0.14054
B14: 1.5X LB | C14: 3.07357 | D14: 0.56892 | E14: 3.89676 | F14: 0.19595
B15: TB | C15: 3.73092 | D15: 0.18136 | E15: 4.15187 | F15: 0.07013
C18: OD600
B19: Culture temperature | C19: 30 | E19: 37
B20: Culture medium | C20: Mean value | D20: Error bar | E20: Mean value | F20: Error bar
B21: M9 | C21: 4.8 | D21: 0.28853 | E21: 5.1 | F21: 0.29314
B22: 1.5X LB | C22: 7.6 | D22: 0.75786 | E22: 7 | F22: 0.54489
B23: TB | C23: 11 | D23: 0.12473 | E23: 9.4 | F23: 0.54217
